{"text_format":"1","workbook":"xlsx","n_sheets":3,"sheets":["Consejo","tabladinamica","datos"],"not_rendered":{"charts":0,"images":1,"macros":1,"external_links":0,"defined_names":5,"comments":0,"pivot_tables":1},"unopened":[],"bounds":{"document_bytes":16777216,"sheet_cells":100000,"rows_first":2000,"rows_last":500,"rows_between":2000,"halvings":0,"cell_chars":16384,"cell_head_chars":4096},"cells_cut":0,"cells_raw":0,"read":"whole","date_system":"1900"}

{"sheet":"Consejo","index":0,"n_rows":48,"n_cols":25,"rows_kept":48,"cut":false,"hidden":false,"merged":[[14,3,14,10],[15,3,15,10],[16,3,16,10],[11,8,11,10],[8,3,8,10],[9,3,9,10],[10,3,10,10],[11,3,11,6],[13,3,13,10],[2,1,2,10],[4,1,4,9],[5,3,5,10],[6,3,6,10],[7,3,7,10],[22,3,22,5],[22,6,22,9],[23,3,23,5],[23,6,23,9],[17,3,17,10],[18,3,18,10],[20,3,20,5],[20,6,20,9],[21,3,21,5],[21,6,21,9]]}
[]
[]
[null,"PROGRAMAS OPERATIVOS"]
[]
[null,"PROGRAMAS",null,null,null,null,null,null,null,null,"AÑO: 2014"]
[null,"Clave"]
[null,null,"Tipo de Programa:"]
[null,null,"Dirección General","Dirección jurídica"]
[null,null,"Dirección de Área",""]
[null,null,"Departamento / Coordinación","Consejo Municipal de la Familia"]
[null,null,"Monto Total del Programa / Proyecto"]
[null,null,"Responsable",null,null,null,null,"E-mail"]
[]
[null,"No."]
[null,null,"Programa / Proyecto","Consejo de familia es un organo de participación ciudadana que sirve como enlace entre las instituciones públicas o privadas que tengan por objeto la atención de niños, niñas y adolescentes, adultos mayores y personas con discapacidad en situación de vulnerabilidad."]
[null,null,"Descripción","Menores de edad institucionalizados y en estado de vulnerabilidad resuelta su situación jurídica"]
[null,null,"Propósito",""]
[null,null,"Alcance y/o Medición del Logro: (Cantidad, Calidad y Tiempo)","Inclusión y Equidad"]
[null,null,"Prioridad"]
[]
[null,"No.","Eje Rector","Estrategia",null,null,"Línea(s) de Acción",null,null,null,"Núm. Ref."]
[null,3,"Inclusión y Equidad "]
[]
[]
[]
[null,"No.","Procedimientos Generales","Productos Entregables (Mesurables)","Atributo(s) o característica(s) del producto","Metas","Unidad de Medida","Frecuencia de la actividad ","Frecuencia de la medición de la meta","Medio de Verificación ","Condiciones para Lograr el Producto","Enero","Febrero","Marzo","Abril","Mayo","Junio","Julio","Agosto","Septiembre","Octubre","Noviembre","Diciembre","Total","Avance  %"]
[null,null,"ADOPCIONES","APLICACIÓN DE BATERÍAS PSICOLÓGICAS","CAPACITACIÓN COMUNITARIA",40,"SESION","ANUAL","MENSUAL","REGISTRO, EXPEDIENTE, PADRON.","AFLUENCIA DE BENEFICIARIOS",6,7,4,4,4,3,null,null,1,null,null,null,{"$f":"SUM(L27:W27)","v":29},{"$f":"X27*1/F27","v":0.72499999999999998}]
[null,null,null,"ASESORÍAS","INFORMACIÓN Y AYUDA AL CIUDADANO",30,"ASESORIA A CIUDADANO","ANUAL","MENSUAL","BITACORA","AFLUENCIA DE BENEFICIARIOS",40,41,9,4,null,null,null,null,null,18,11,null,{"$f":"SUM(L28:W28)","v":123},{"$f":"X28*1/F28","v":4.0999999999999996}]
[null,null,null,"CAPACITACIÓN","CAPACITACIÓN COMUNITARIA",20,"SESION","ANUAL","MENSUAL","LISTAS DE ASISTENCIA, FOTOGRAFIAS","AFLUENCIA DE BENEFICIARIOS",null,null,null,1,2,2,null,null,null,null,null,null,5,0.25]
[null,null,null,"ENTREVISTA ORIENTACIÓN","CAPACITACIÓN COMUNITARIA",60,"SESION","ANUAL","MENSUAL","REGISTRO","AFLUENCIA DE BENEFICIARIOS",13,33,25,2,5,7,null,null,1,null,null,null,86,1.4333333333333333]
[null,null,null,"ESTUDIOS SOCIOFAMILIAR","CAPACITACIÓN COMUNITARIA",10,"SESION","ANUAL","MENSUAL","REGISTRO, EXPEDIENTE, PADRON, INVESTIGACION","AFLUENCIA DE BENEFICIARIOS",null,2,null,null,null,null,null,null,null,1,null,null,3,0.3]
[null,null,null,"INFORMES SOBRE ADOPCIÓN","CAPACITACIÓN COMUNITARIA",20,"SESION","ANUAL","MENSUAL","REGISTRO, EXPEDIENTE, PADRON, INVESTIGACION","AFLUENCIA DE BENEFICIARIOS",null,null,3,null,null,null,null,null,null,1,null,null,4,0.2]
[null,null,null,"VALORACIONES","CAPACITACIÓN COMUNITARIA",10,"SESION","ANUAL","MENSUAL","REGISTRO, EXPEDIENTE, PADRON, INVESTIGACION","AFLUENCIA DE BENEFICIARIOS",2,null,null,null,null,null,null,null,null,null,null,null,2,0.2]
[null,null,null,"VISITAS","VISITA PARA SEGUIMIENTO E INVESTIGACIÓN",20,"VISITAS","ANUAL","MENSUAL","DOCUMENTOS, FOTOGRAFIAS, OTRAS PRUEBAS.","AFLUENCIA DE BENEFICIARIOS",12,18,1,null,null,2,null,5,2,null,null,null,40,2]
[null,null,null,"SEGUIMIENTOS POST ADOPTIVOS","CAPACITACIÓN COMUNITARIA",50,"SESION","ANUAL","MENSUAL","REGISTRO, EXPEDIENTE, PADRON, INVESTIGACION","AFLUENCIA DE BENEFICIARIOS",null,null,null,null,null,null,null,null,null,1,null,null,1,0.02]
[null,null,"CUSTODIA","ASESORÍAS","INFORMACIÓN Y AYUDA AL CIUDADANO",1650,"ASESORIA A CIUDADANO","ANUAL","MENSUAL","BITACORA","AFLUENCIA DE BENEFICIARIOS",55,3,null,null,null,null,null,null,null,2,null,null,60,3.6363636363636362E-2]
[null,null,null,"ENTREVISTA ORIENTACIÓN","CAPACITACIÓN COMUNITARIA",490,"SESION","ANUAL","MENSUAL","REGISTRO","AFLUENCIA DE BENEFICIARIOS",92,33,15,8,null,2,null,null,1,15,null,null,166,0.33877551020408164]
[null,null,null,"ESTUDIOS SOCIOFAMILIAR","CAPACITACIÓN COMUNITARIA",30,"SESION","ANUAL","MENSUAL","REGISTRO, EXPEDIENTE, PADRON, INVESTIGACION","AFLUENCIA DE BENEFICIARIOS",1,null,null,null,null,null,null,null,null,null,null,null,1,3.3333333333333333E-2]
[null,null,null,"VALORACIONES","CAPACITACIÓN COMUNITARIA",50,"SESION","ANUAL","MENSUAL","REGISTRO, EXPEDIENTE, PADRON, INVESTIGACION","AFLUENCIA DE BENEFICIARIOS",4,6,6,null,null,null,null,null,null,null,null,null,16,0.32]
[null,null,null,"VISITAS","VISITA PARA SEGUIMIENTO E INVESTIGACIÓN",400,"VISITAS","ANUAL","MENSUAL","DOCUMENTOS, FOTOGRAFIAS, OTRAS PRUEBAS.","AFLUENCIA DE BENEFICIARIOS",44,12,19,2,null,null,1,null,null,5,null,null,83,0.20749999999999999]
[null,null,null,"REPRESENTACIONES JUDICIALES, MINISTERIALES Y ADMINISTRATIVAS","CAPACITACIÓN COMUNITARIA",290,"SESION","ANUAL","MENSUAL","REGISTRO, EXPEDIENTE, PADRON, INVESTIGACION","AFLUENCIA DE BENEFICIARIOS",30,null,null,null,null,null,null,null,null,null,null,null,30,0.10344827586206896]
[null,null,"TUTELAS","APLICACIÓN DE BATERÍAS PSICOLÓGICAS","CAPACITACIÓN COMUNITARIA",20,"SESION","ANUAL","MENSUAL","REGISTRO, EXPEDIENTE, PADRON.","AFLUENCIA DE BENEFICIARIOS",null,null,null,null,null,null,null,1,null,null,null,null,1,0.05]
[null,null,null,"ASESORÍAS","INFORMACIÓN Y AYUDA AL CIUDADANO",300,"ASESORIA A CIUDADANO","ANUAL","MENSUAL","BITACORA","AFLUENCIA DE BENEFICIARIOS",88,66,105,null,58,71,44,107,56,5,null,null,600,2]
[null,null,null,"ENTREVISTA ORIENTACIÓN","CAPACITACIÓN COMUNITARIA",390,"SESION","ANUAL","MENSUAL","REGISTRO","AFLUENCIA DE BENEFICIARIOS",55,63,31,22,23,15,16,5,1,117,8,null,{"$f":"SUM(L44:W44)","v":356},{"$f":"X44*1/F44","v":0.9128205128205128}]
[null,null,null,"ESTUDIOS SOCIOFAMILIAR","CAPACITACIÓN COMUNITARIA",10,"SESION","ANUAL","MENSUAL","REGISTRO","AFLUENCIA DE BENEFICIARIOS",1,null,1,null,3,4,null,null,null,null,3,null,12,1.2]
[null,null,null,"VISITAS","VISITA PARA SEGUIMIENTO E INVESTIGACIÓN",190,"VISITAS","ANUAL","MENSUAL","DOCUMENTOS, FOTOGRAFIAS, OTRAS PRUEBAS.","RECURSOS, TRANSPORTE, TIEMPO, DATOS CORRECTOS",3,15,28,null,38,21,13,22,21,9,null,null,170,0.89473684210526316]
[null,null,null,"REPRESENTACIONES JUDICIALES, MINISTERIALES Y ADMINISTRATIVAS","CAPACITACIÓN COMUNITARIA",1920,"SESION","ANUAL","MENSUAL","REGISTRO, EXPEDIENTE, PADRON, INVESTIGACION","AFLUENCIA DE BENEFICIARIOS",133,84,null,null,null,null,null,null,null,null,null,null,217,0.11302083333333333]
[null,null,null,"VISITAS SEGUIMIENTO","VISITA PARA SEGUIMIENTO E INVESTIGACIÓN",330,"VISITAS","ANUAL","MENSUAL","DOCUMENTOS, FOTOGRAFIAS, OTRAS PRUEBAS.","RECURSOS, TRANSPORTE, TIEMPO, DATOS CORRECTOS",26,18,28,null,null,1,1,21,2,14,null,null,111,0.33636363636363636]

{"sheet":"tabladinamica","index":1,"n_rows":26,"n_cols":20,"rows_kept":26,"cut":false,"hidden":false,"merged":[]}
[]
[]
["Suma de Sum(reporte_2015.cat_atencion)",null,null,null,null,null,null,null,null,"mes"]
["nombre","ProcedimientosGenerales","AtributosCaracteristicas","Meta","UnidadDeMedida","FrecuenciaMedida","FrecuenciaMedición","MediaVerificación","CondicionesNecesarias","01-Ene","02-Feb","03-Mar","04-Abr","05-May","06-Jun","07-Jul","08-Ago","09-Sep","10-Oct","11-Nov"]
["ADOPCIONES","APLICACIÓN DE BATERÍAS PSICOLÓGICAS","CAPACITACIÓN COMUNITARIA",40,"SESION","ANUAL","MENSUAL","REGISTRO, EXPEDIENTE, PADRON.","AFLUENCIA DE BENEFICIARIOS",6,7,4,4,4,3,null,null,1]
[null,"ASESORÍAS","INFORMACIÓN Y AYUDA AL CIUDADANO",30,"ASESORIA A CIUDADANO","ANUAL","MENSUAL","BITACORA","AFLUENCIA DE BENEFICIARIOS",40,41,9,4,null,null,null,null,null,18,11]
[null,"CAPACITACIÓN","CAPACITACIÓN COMUNITARIA",20,"SESION","ANUAL","MENSUAL","LISTAS DE ASISTENCIA, FOTOGRAFIAS","AFLUENCIA DE BENEFICIARIOS",null,null,null,1,2,2]
[null,"ENTREVISTA ORIENTACIÓN","CAPACITACIÓN COMUNITARIA",60,"SESION","ANUAL","MENSUAL","REGISTRO","AFLUENCIA DE BENEFICIARIOS",13,33,25,2,5,7,null,null,1]
[null,"ESTUDIOS SOCIOFAMILIAR","CAPACITACIÓN COMUNITARIA",10,"SESION","ANUAL","MENSUAL","REGISTRO, EXPEDIENTE, PADRON, INVESTIGACION","AFLUENCIA DE BENEFICIARIOS",null,2,null,null,null,null,null,null,null,1]
[null,"INFORMES SOBRE ADOPCIÓN","CAPACITACIÓN COMUNITARIA",20,"SESION","ANUAL","MENSUAL","REGISTRO, EXPEDIENTE, PADRON, INVESTIGACION","AFLUENCIA DE BENEFICIARIOS",null,null,3,null,null,null,null,null,null,1]
[null,"VALORACIONES","CAPACITACIÓN COMUNITARIA",10,"SESION","ANUAL","MENSUAL","REGISTRO, EXPEDIENTE, PADRON, INVESTIGACION","AFLUENCIA DE BENEFICIARIOS",2]
[null,"VISITAS","VISITA PARA SEGUIMIENTO E INVESTIGACIÓN",20,"VISITAS","ANUAL","MENSUAL","DOCUMENTOS, FOTOGRAFIAS, OTRAS PRUEBAS.","AFLUENCIA DE BENEFICIARIOS",12,18,1,null,null,2,null,5,2]
[null,"SEGUIMIENTOS POST ADOPTIVOS","CAPACITACIÓN COMUNITARIA",50,"SESION","ANUAL","MENSUAL","REGISTRO, EXPEDIENTE, PADRON, INVESTIGACION","AFLUENCIA DE BENEFICIARIOS",null,null,null,null,null,null,null,null,null,1]
["CUSTODIA","ASESORÍAS","INFORMACIÓN Y AYUDA AL CIUDADANO",1650,"ASESORIA A CIUDADANO","ANUAL","MENSUAL","BITACORA","AFLUENCIA DE BENEFICIARIOS",55,3,null,null,null,null,null,null,null,2]
[null,"ENTREVISTA ORIENTACIÓN","CAPACITACIÓN COMUNITARIA",490,"SESION","ANUAL","MENSUAL","REGISTRO","AFLUENCIA DE BENEFICIARIOS",92,33,15,8,null,2,null,null,1,15]
[null,"ESTUDIOS SOCIOFAMILIAR","CAPACITACIÓN COMUNITARIA",30,"SESION","ANUAL","MENSUAL","REGISTRO, EXPEDIENTE, PADRON, INVESTIGACION","AFLUENCIA DE BENEFICIARIOS",1]
[null,"VALORACIONES","CAPACITACIÓN COMUNITARIA",50,"SESION","ANUAL","MENSUAL","REGISTRO, EXPEDIENTE, PADRON, INVESTIGACION","AFLUENCIA DE BENEFICIARIOS",4,6,6]
[null,"VISITAS","VISITA PARA SEGUIMIENTO E INVESTIGACIÓN",400,"VISITAS","ANUAL","MENSUAL","DOCUMENTOS, FOTOGRAFIAS, OTRAS PRUEBAS.","AFLUENCIA DE BENEFICIARIOS",44,12,19,2,null,null,1,null,null,5]
[null,"REPRESENTACIONES JUDICIALES, MINISTERIALES Y ADMINISTRATIVAS","CAPACITACIÓN COMUNITARIA",290,"SESION","ANUAL","MENSUAL","REGISTRO, EXPEDIENTE, PADRON, INVESTIGACION","AFLUENCIA DE BENEFICIARIOS",30]
["TUTELAS","APLICACIÓN DE BATERÍAS PSICOLÓGICAS","CAPACITACIÓN COMUNITARIA",20,"SESION","ANUAL","MENSUAL","REGISTRO, EXPEDIENTE, PADRON.","AFLUENCIA DE BENEFICIARIOS",null,null,null,null,null,null,null,1]
[null,"ASESORÍAS","INFORMACIÓN Y AYUDA AL CIUDADANO",300,"ASESORIA A CIUDADANO","ANUAL","MENSUAL","BITACORA","AFLUENCIA DE BENEFICIARIOS",88,66,105,null,58,71,44,107,56,5]
[null,"ENTREVISTA ORIENTACIÓN","CAPACITACIÓN COMUNITARIA",390,"SESION","ANUAL","MENSUAL","REGISTRO","AFLUENCIA DE BENEFICIARIOS",55,63,31,22,23,15,16,5,1,117,8]
[null,"ESTUDIOS SOCIOFAMILIAR","CAPACITACIÓN COMUNITARIA",10,"SESION","ANUAL","MENSUAL","REGISTRO","AFLUENCIA DE BENEFICIARIOS",1,null,1,null,3,4,null,null,null,null,3]
[null,"VISITAS","VISITA PARA SEGUIMIENTO E INVESTIGACIÓN",190,"VISITAS","ANUAL","MENSUAL","DOCUMENTOS, FOTOGRAFIAS, OTRAS PRUEBAS.","RECURSOS, TRANSPORTE, TIEMPO, DATOS CORRECTOS",3,15,28,null,38,21,13,22,21,9]
[null,"REPRESENTACIONES JUDICIALES, MINISTERIALES Y ADMINISTRATIVAS","CAPACITACIÓN COMUNITARIA",1920,"SESION","ANUAL","MENSUAL","REGISTRO, EXPEDIENTE, PADRON, INVESTIGACION","AFLUENCIA DE BENEFICIARIOS",133,84]
[null,"VISITAS SEGUIMIENTO","VISITA PARA SEGUIMIENTO E INVESTIGACIÓN",330,"VISITAS","ANUAL","MENSUAL","DOCUMENTOS, FOTOGRAFIAS, OTRAS PRUEBAS.","RECURSOS, TRANSPORTE, TIEMPO, DATOS CORRECTOS",26,18,28,null,null,1,1,21,2,14]

{"sheet":"datos","index":2,"n_rows":120,"n_cols":37,"rows_kept":120,"cut":false,"hidden":false,"merged":[]}
["idServicio","NombreDirección","NombreDepartamento","idEstructuraProgramatica","nombre_servicio","mes","nombre","Dirección","Dep_idDep","Responsable","Correo","Telefono","Ext","ProcedimientosGenerales","ProductosEntregables","AtributosCaracteristicas","Meta","UnidadDeMedida","FrecuenciaMedida","FrecuenciaMedición","MediaVerificación","CondicionesNecesarias","TipoPrograma","DirecciónGeneral","DirecciónArea","MontoTotalPrograma","ResponsablePrograma","ProgramaProyecto","Descripcción","Proposito","AlcanceMedicción","EjeRector","Estrategia","LineaAcción","NumeroReferencia","Periodo","Sum(reporte_2015.cat_atencion)"]
[141,"Dirección de Juridico","Consejo Municipal de la Familia",8,"APLICACIÓN DE BATERÍAS PSICOLÓGICAS","01-Ene","ADOPCIONES",2,5,"SALAS NIÑO ALEJANDRA","asalas@difzapopan.gob.mx","38363444","1101","APLICACIÓN DE BATERÍAS PSICOLÓGICAS","SESION","CAPACITACIÓN COMUNITARIA",40,"SESION","ANUAL","MENSUAL","REGISTRO, EXPEDIENTE, PADRON.","AFLUENCIA DE BENEFICIARIOS",null,"Dif municipal de zapopan","Dirección jurídica","","Lic. Alejandra Salas Niño","Consejo municipal de la familia","Consejo de familia es un organo de participación ciudadana que sirve como enlace entre las instituciones públicas o privadas que tengan por objeto la atención de niños, niñas y adolescentes, adultos mayores y personas con discapacidad en situación de vulnerabilidad.","Menores de edad institucionalizados y en estado de vulnerabilidad resuelta su situación jurídica","","Inclusión y Equidad","","","",1,6]
[141,"Dirección de Juridico","Consejo Municipal de la Familia",8,"APLICACIÓN DE BATERÍAS PSICOLÓGICAS","02-Feb","ADOPCIONES",2,5,"SALAS NIÑO ALEJANDRA","asalas@difzapopan.gob.mx","38363444","1101","APLICACIÓN DE BATERÍAS PSICOLÓGICAS","SESION","CAPACITACIÓN COMUNITARIA",40,"SESION","ANUAL","MENSUAL","REGISTRO, EXPEDIENTE, PADRON.","AFLUENCIA DE BENEFICIARIOS",null,"Dif municipal de zapopan","Dirección jurídica","","Lic. Alejandra Salas Niño","Consejo municipal de la familia","Consejo de familia es un organo de participación ciudadana que sirve como enlace entre las instituciones públicas o privadas que tengan por objeto la atención de niños, niñas y adolescentes, adultos mayores y personas con discapacidad en situación de vulnerabilidad.","Menores de edad institucionalizados y en estado de vulnerabilidad resuelta su situación jurídica","","Inclusión y Equidad","","","",1,7]
[141,"Dirección de Juridico","Consejo Municipal de la Familia",8,"APLICACIÓN DE BATERÍAS PSICOLÓGICAS","03-Mar","ADOPCIONES",2,5,"SALAS NIÑO ALEJANDRA","asalas@difzapopan.gob.mx","38363444","1101","APLICACIÓN DE BATERÍAS PSICOLÓGICAS","SESION","CAPACITACIÓN COMUNITARIA",40,"SESION","ANUAL","MENSUAL","REGISTRO, EXPEDIENTE, PADRON.","AFLUENCIA DE BENEFICIARIOS",null,"Dif municipal de zapopan","Dirección jurídica","","Lic. Alejandra Salas Niño","Consejo municipal de la familia","Consejo de familia es un organo de participación ciudadana que sirve como enlace entre las instituciones públicas o privadas que tengan por objeto la atención de niños, niñas y adolescentes, adultos mayores y personas con discapacidad en situación de vulnerabilidad.","Menores de edad institucionalizados y en estado de vulnerabilidad resuelta su situación jurídica","","Inclusión y Equidad","","","",1,4]
[141,"Dirección de Juridico","Consejo Municipal de la Familia",8,"APLICACIÓN DE BATERÍAS PSICOLÓGICAS","04-Abr","ADOPCIONES",2,5,"SALAS NIÑO ALEJANDRA","asalas@difzapopan.gob.mx","38363444","1101","APLICACIÓN DE BATERÍAS PSICOLÓGICAS","SESION","CAPACITACIÓN COMUNITARIA",40,"SESION","ANUAL","MENSUAL","REGISTRO, EXPEDIENTE, PADRON.","AFLUENCIA DE BENEFICIARIOS",null,"Dif municipal de zapopan","Dirección jurídica","","Lic. Alejandra Salas Niño","Consejo municipal de la familia","Consejo de familia es un organo de participación ciudadana que sirve como enlace entre las instituciones públicas o privadas que tengan por objeto la atención de niños, niñas y adolescentes, adultos mayores y personas con discapacidad en situación de vulnerabilidad.","Menores de edad institucionalizados y en estado de vulnerabilidad resuelta su situación jurídica","","Inclusión y Equidad","","","",1,4]
[141,"Dirección de Juridico","Consejo Municipal de la Familia",8,"APLICACIÓN DE BATERÍAS PSICOLÓGICAS","05-May","ADOPCIONES",2,5,"SALAS NIÑO ALEJANDRA","asalas@difzapopan.gob.mx","38363444","1101","APLICACIÓN DE BATERÍAS PSICOLÓGICAS","SESION","CAPACITACIÓN COMUNITARIA",40,"SESION","ANUAL","MENSUAL","REGISTRO, EXPEDIENTE, PADRON.","AFLUENCIA DE BENEFICIARIOS",null,"Dif municipal de zapopan","Dirección jurídica","","Lic. Alejandra Salas Niño","Consejo municipal de la familia","Consejo de familia es un organo de participación ciudadana que sirve como enlace entre las instituciones públicas o privadas que tengan por objeto la atención de niños, niñas y adolescentes, adultos mayores y personas con discapacidad en situación de vulnerabilidad.","Menores de edad institucionalizados y en estado de vulnerabilidad resuelta su situación jurídica","","Inclusión y Equidad","","","",1,4]
[141,"Dirección de Juridico","Consejo Municipal de la Familia",8,"APLICACIÓN DE BATERÍAS PSICOLÓGICAS","06-Jun","ADOPCIONES",2,5,"SALAS NIÑO ALEJANDRA","asalas@difzapopan.gob.mx","38363444","1101","APLICACIÓN DE BATERÍAS PSICOLÓGICAS","SESION","CAPACITACIÓN COMUNITARIA",40,"SESION","ANUAL","MENSUAL","REGISTRO, EXPEDIENTE, PADRON.","AFLUENCIA DE BENEFICIARIOS",null,"Dif municipal de zapopan","Dirección jurídica","","Lic. Alejandra Salas Niño","Consejo municipal de la familia","Consejo de familia es un organo de participación ciudadana que sirve como enlace entre las instituciones públicas o privadas que tengan por objeto la atención de niños, niñas y adolescentes, adultos mayores y personas con discapacidad en situación de vulnerabilidad.","Menores de edad institucionalizados y en estado de vulnerabilidad resuelta su situación jurídica","","Inclusión y Equidad","","","",1,3]
[141,"Dirección de Juridico","Consejo Municipal de la Familia",8,"APLICACIÓN DE BATERÍAS PSICOLÓGICAS","09-Sep","ADOPCIONES",2,5,"SALAS NIÑO ALEJANDRA","asalas@difzapopan.gob.mx","38363444","1101","APLICACIÓN DE BATERÍAS PSICOLÓGICAS","SESION","CAPACITACIÓN COMUNITARIA",40,"SESION","ANUAL","MENSUAL","REGISTRO, EXPEDIENTE, PADRON.","AFLUENCIA DE BENEFICIARIOS",null,"Dif municipal de zapopan","Dirección jurídica","","Lic. Alejandra Salas Niño","Consejo municipal de la familia","Consejo de familia es un organo de participación ciudadana que sirve como enlace entre las instituciones públicas o privadas que tengan por objeto la atención de niños, niñas y adolescentes, adultos mayores y personas con discapacidad en situación de vulnerabilidad.","Menores de edad institucionalizados y en estado de vulnerabilidad resuelta su situación jurídica","","Inclusión y Equidad","","","",1,1]
[142,"Dirección de Juridico","Consejo Municipal de la Familia",8,"ASESORÍAS","01-Ene","ADOPCIONES",2,5,"SALAS NIÑO ALEJANDRA","asalas@difzapopan.gob.mx","38363444","1101","ASESORÍAS","SESION / ASESORÍA","INFORMACIÓN Y AYUDA AL CIUDADANO",30,"ASESORIA A CIUDADANO","ANUAL","MENSUAL","BITACORA","AFLUENCIA DE BENEFICIARIOS",null,"Dif municipal de zapopan","Dirección jurídica","","Lic. Alejandra Salas Niño","Consejo municipal de la familia","Consejo de familia es un organo de participación ciudadana que sirve como enlace entre las instituciones públicas o privadas que tengan por objeto la atención de niños, niñas y adolescentes, adultos mayores y personas con discapacidad en situación de vulnerabilidad.","Menores de edad institucionalizados y en estado de vulnerabilidad resuelta su situación jurídica","","Inclusión y Equidad","","","",1,40]
[142,"Dirección de Juridico","Consejo Municipal de la Familia",8,"ASESORÍAS","02-Feb","ADOPCIONES",2,5,"SALAS NIÑO ALEJANDRA","asalas@difzapopan.gob.mx","38363444","1101","ASESORÍAS","SESION / ASESORÍA","INFORMACIÓN Y AYUDA AL CIUDADANO",30,"ASESORIA A CIUDADANO","ANUAL","MENSUAL","BITACORA","AFLUENCIA DE BENEFICIARIOS",null,"Dif municipal de zapopan","Dirección jurídica","","Lic. Alejandra Salas Niño","Consejo municipal de la familia","Consejo de familia es un organo de participación ciudadana que sirve como enlace entre las instituciones públicas o privadas que tengan por objeto la atención de niños, niñas y adolescentes, adultos mayores y personas con discapacidad en situación de vulnerabilidad.","Menores de edad institucionalizados y en estado de vulnerabilidad resuelta su situación jurídica","","Inclusión y Equidad","","","",1,41]
[142,"Dirección de Juridico","Consejo Municipal de la Familia",8,"ASESORÍAS","03-Mar","ADOPCIONES",2,5,"SALAS NIÑO ALEJANDRA","asalas@difzapopan.gob.mx","38363444","1101","ASESORÍAS","SESION / ASESORÍA","INFORMACIÓN Y AYUDA AL CIUDADANO",30,"ASESORIA A CIUDADANO","ANUAL","MENSUAL","BITACORA","AFLUENCIA DE BENEFICIARIOS",null,"Dif municipal de zapopan","Dirección jurídica","","Lic. Alejandra Salas Niño","Consejo municipal de la familia","Consejo de familia es un organo de participación ciudadana que sirve como enlace entre las instituciones públicas o privadas que tengan por objeto la atención de niños, niñas y adolescentes, adultos mayores y personas con discapacidad en situación de vulnerabilidad.","Menores de edad institucionalizados y en estado de vulnerabilidad resuelta su situación jurídica","","Inclusión y Equidad","","","",1,9]
[142,"Dirección de Juridico","Consejo Municipal de la Familia",8,"ASESORÍAS","04-Abr","ADOPCIONES",2,5,"SALAS NIÑO ALEJANDRA","asalas@difzapopan.gob.mx","38363444","1101","ASESORÍAS","SESION / ASESORÍA","INFORMACIÓN Y AYUDA AL CIUDADANO",30,"ASESORIA A CIUDADANO","ANUAL","MENSUAL","BITACORA","AFLUENCIA DE BENEFICIARIOS",null,"Dif municipal de zapopan","Dirección jurídica","","Lic. Alejandra Salas Niño","Consejo municipal de la familia","Consejo de familia es un organo de participación ciudadana que sirve como enlace entre las instituciones públicas o privadas que tengan por objeto la atención de niños, niñas y adolescentes, adultos mayores y personas con discapacidad en situación de vulnerabilidad.","Menores de edad institucionalizados y en estado de vulnerabilidad resuelta su situación jurídica","","Inclusión y Equidad","","","",1,4]
[142,"Dirección de Juridico","Consejo Municipal de la Familia",8,"ASESORÍAS","10-Oct","ADOPCIONES",2,5,"SALAS NIÑO ALEJANDRA","asalas@difzapopan.gob.mx","38363444","1101","ASESORÍAS","SESION / ASESORÍA","INFORMACIÓN Y AYUDA AL CIUDADANO",30,"ASESORIA A CIUDADANO","ANUAL","MENSUAL","BITACORA","AFLUENCIA DE BENEFICIARIOS",null,"Dif municipal de zapopan","Dirección jurídica","","Lic. Alejandra Salas Niño","Consejo municipal de la familia","Consejo de familia es un organo de participación ciudadana que sirve como enlace entre las instituciones públicas o privadas que tengan por objeto la atención de niños, niñas y adolescentes, adultos mayores y personas con discapacidad en situación de vulnerabilidad.","Menores de edad institucionalizados y en estado de vulnerabilidad resuelta su situación jurídica","","Inclusión y Equidad","","","",1,103]
[142,"Dirección de Juridico","Consejo Municipal de la Familia",8,"ASESORÍAS","11-Nov","ADOPCIONES",2,5,"SALAS NIÑO ALEJANDRA","asalas@difzapopan.gob.mx","38363444","1101","ASESORÍAS","SESION / ASESORÍA","INFORMACIÓN Y AYUDA AL CIUDADANO",30,"ASESORIA A CIUDADANO","ANUAL","MENSUAL","BITACORA","AFLUENCIA DE BENEFICIARIOS",null,"Dif municipal de zapopan","Dirección jurídica","","Lic. Alejandra Salas Niño","Consejo municipal de la familia","Consejo de familia es un organo de participación ciudadana que sirve como enlace entre las instituciones públicas o privadas que tengan por objeto la atención de niños, niñas y adolescentes, adultos mayores y personas con discapacidad en situación de vulnerabilidad.","Menores de edad institucionalizados y en estado de vulnerabilidad resuelta su situación jurídica","","Inclusión y Equidad","","","",1,60]
[143,"Dirección de Juridico","Consejo Municipal de la Familia",8,"CAPACITACIÓN","04-Abr","ADOPCIONES",2,5,"SALAS NIÑO ALEJANDRA","asalas@difzapopan.gob.mx","38363444","1101","CAPACITACIÓN","SESION","CAPACITACIÓN COMUNITARIA",20,"SESION","ANUAL","MENSUAL","LISTAS DE ASISTENCIA, FOTOGRAFIAS","AFLUENCIA DE BENEFICIARIOS",null,"Dif municipal de zapopan","Dirección jurídica","","Lic. Alejandra Salas Niño","Consejo municipal de la familia","Consejo de familia es un organo de participación ciudadana que sirve como enlace entre las instituciones públicas o privadas que tengan por objeto la atención de niños, niñas y adolescentes, adultos mayores y personas con discapacidad en situación de vulnerabilidad.","Menores de edad institucionalizados y en estado de vulnerabilidad resuelta su situación jurídica","","Inclusión y Equidad","","","",1,1]
[143,"Dirección de Juridico","Consejo Municipal de la Familia",8,"CAPACITACIÓN","05-May","ADOPCIONES",2,5,"SALAS NIÑO ALEJANDRA","asalas@difzapopan.gob.mx","38363444","1101","CAPACITACIÓN","SESION","CAPACITACIÓN COMUNITARIA",20,"SESION","ANUAL","MENSUAL","LISTAS DE ASISTENCIA, FOTOGRAFIAS","AFLUENCIA DE BENEFICIARIOS",null,"Dif municipal de zapopan","Dirección jurídica","","Lic. Alejandra Salas Niño","Consejo municipal de la familia","Consejo de familia es un organo de participación ciudadana que sirve como enlace entre las instituciones públicas o privadas que tengan por objeto la atención de niños, niñas y adolescentes, adultos mayores y personas con discapacidad en situación de vulnerabilidad.","Menores de edad institucionalizados y en estado de vulnerabilidad resuelta su situación jurídica","","Inclusión y Equidad","","","",1,2]
[143,"Dirección de Juridico","Consejo Municipal de la Familia",8,"CAPACITACIÓN","06-Jun","ADOPCIONES",2,5,"SALAS NIÑO ALEJANDRA","asalas@difzapopan.gob.mx","38363444","1101","CAPACITACIÓN","SESION","CAPACITACIÓN COMUNITARIA",20,"SESION","ANUAL","MENSUAL","LISTAS DE ASISTENCIA, FOTOGRAFIAS","AFLUENCIA DE BENEFICIARIOS",null,"Dif municipal de zapopan","Dirección jurídica","","Lic. Alejandra Salas Niño","Consejo municipal de la familia","Consejo de familia es un organo de participación ciudadana que sirve como enlace entre las instituciones públicas o privadas que tengan por objeto la atención de niños, niñas y adolescentes, adultos mayores y personas con discapacidad en situación de vulnerabilidad.","Menores de edad institucionalizados y en estado de vulnerabilidad resuelta su situación jurídica","","Inclusión y Equidad","","","",1,2]
[144,"Dirección de Juridico","Consejo Municipal de la Familia",8,"ENTREVISTA ORIENTACIÓN","01-Ene","ADOPCIONES",2,5,"SALAS NIÑO ALEJANDRA","asalas@difzapopan.gob.mx","38363444","1101","ENTREVISTA ORIENTACIÓN","SESION","CAPACITACIÓN COMUNITARIA",60,"SESION","ANUAL","MENSUAL","REGISTRO","AFLUENCIA DE BENEFICIARIOS",null,"Dif municipal de zapopan","Dirección jurídica","","Lic. Alejandra Salas Niño","Consejo municipal de la familia","Consejo de familia es un organo de participación ciudadana que sirve como enlace entre las instituciones públicas o privadas que tengan por objeto la atención de niños, niñas y adolescentes, adultos mayores y personas con discapacidad en situación de vulnerabilidad.","Menores de edad institucionalizados y en estado de vulnerabilidad resuelta su situación jurídica","","Inclusión y Equidad","","","",1,13]
[144,"Dirección de Juridico","Consejo Municipal de la Familia",8,"ENTREVISTA ORIENTACIÓN","02-Feb","ADOPCIONES",2,5,"SALAS NIÑO ALEJANDRA","asalas@difzapopan.gob.mx","38363444","1101","ENTREVISTA ORIENTACIÓN","SESION","CAPACITACIÓN COMUNITARIA",60,"SESION","ANUAL","MENSUAL","REGISTRO","AFLUENCIA DE BENEFICIARIOS",null,"Dif municipal de zapopan","Dirección jurídica","","Lic. Alejandra Salas Niño","Consejo municipal de la familia","Consejo de familia es un organo de participación ciudadana que sirve como enlace entre las instituciones públicas o privadas que tengan por objeto la atención de niños, niñas y adolescentes, adultos mayores y personas con discapacidad en situación de vulnerabilidad.","Menores de edad institucionalizados y en estado de vulnerabilidad resuelta su situación jurídica","","Inclusión y Equidad","","","",1,33]
[144,"Dirección de Juridico","Consejo Municipal de la Familia",8,"ENTREVISTA ORIENTACIÓN","03-Mar","ADOPCIONES",2,5,"SALAS NIÑO ALEJANDRA","asalas@difzapopan.gob.mx","38363444","1101","ENTREVISTA ORIENTACIÓN","SESION","CAPACITACIÓN COMUNITARIA",60,"SESION","ANUAL","MENSUAL","REGISTRO","AFLUENCIA DE BENEFICIARIOS",null,"Dif municipal de zapopan","Dirección jurídica","","Lic. Alejandra Salas Niño","Consejo municipal de la familia","Consejo de familia es un organo de participación ciudadana que sirve como enlace entre las instituciones públicas o privadas que tengan por objeto la atención de niños, niñas y adolescentes, adultos mayores y personas con discapacidad en situación de vulnerabilidad.","Menores de edad institucionalizados y en estado de vulnerabilidad resuelta su situación jurídica","","Inclusión y Equidad","","","",1,25]
[144,"Dirección de Juridico","Consejo Municipal de la Familia",8,"ENTREVISTA ORIENTACIÓN","04-Abr","ADOPCIONES",2,5,"SALAS NIÑO ALEJANDRA","asalas@difzapopan.gob.mx","38363444","1101","ENTREVISTA ORIENTACIÓN","SESION","CAPACITACIÓN COMUNITARIA",60,"SESION","ANUAL","MENSUAL","REGISTRO","AFLUENCIA DE BENEFICIARIOS",null,"Dif municipal de zapopan","Dirección jurídica","","Lic. Alejandra Salas Niño","Consejo municipal de la familia","Consejo de familia es un organo de participación ciudadana que sirve como enlace entre las instituciones públicas o privadas que tengan por objeto la atención de niños, niñas y adolescentes, adultos mayores y personas con discapacidad en situación de vulnerabilidad.","Menores de edad institucionalizados y en estado de vulnerabilidad resuelta su situación jurídica","","Inclusión y Equidad","","","",1,2]
[144,"Dirección de Juridico","Consejo Municipal de la Familia",8,"ENTREVISTA ORIENTACIÓN","05-May","ADOPCIONES",2,5,"SALAS NIÑO ALEJANDRA","asalas@difzapopan.gob.mx","38363444","1101","ENTREVISTA ORIENTACIÓN","SESION","CAPACITACIÓN COMUNITARIA",60,"SESION","ANUAL","MENSUAL","REGISTRO","AFLUENCIA DE BENEFICIARIOS",null,"Dif municipal de zapopan","Dirección jurídica","","Lic. Alejandra Salas Niño","Consejo municipal de la familia","Consejo de familia es un organo de participación ciudadana que sirve como enlace entre las instituciones públicas o privadas que tengan por objeto la atención de niños, niñas y adolescentes, adultos mayores y personas con discapacidad en situación de vulnerabilidad.","Menores de edad institucionalizados y en estado de vulnerabilidad resuelta su situación jurídica","","Inclusión y Equidad","","","",1,5]
[144,"Dirección de Juridico","Consejo Municipal de la Familia",8,"ENTREVISTA ORIENTACIÓN","06-Jun","ADOPCIONES",2,5,"SALAS NIÑO ALEJANDRA","asalas@difzapopan.gob.mx","38363444","1101","ENTREVISTA ORIENTACIÓN","SESION","CAPACITACIÓN COMUNITARIA",60,"SESION","ANUAL","MENSUAL","REGISTRO","AFLUENCIA DE BENEFICIARIOS",null,"Dif municipal de zapopan","Dirección jurídica","","Lic. Alejandra Salas Niño","Consejo municipal de la familia","Consejo de familia es un organo de participación ciudadana que sirve como enlace entre las instituciones públicas o privadas que tengan por objeto la atención de niños, niñas y adolescentes, adultos mayores y personas con discapacidad en situación de vulnerabilidad.","Menores de edad institucionalizados y en estado de vulnerabilidad resuelta su situación jurídica","","Inclusión y Equidad","","","",1,7]
[144,"Dirección de Juridico","Consejo Municipal de la Familia",8,"ENTREVISTA ORIENTACIÓN","09-Sep","ADOPCIONES",2,5,"SALAS NIÑO ALEJANDRA","asalas@difzapopan.gob.mx","38363444","1101","ENTREVISTA ORIENTACIÓN","SESION","CAPACITACIÓN COMUNITARIA",60,"SESION","ANUAL","MENSUAL","REGISTRO","AFLUENCIA DE BENEFICIARIOS",null,"Dif municipal de zapopan","Dirección jurídica","","Lic. Alejandra Salas Niño","Consejo municipal de la familia","Consejo de familia es un organo de participación ciudadana que sirve como enlace entre las instituciones públicas o privadas que tengan por objeto la atención de niños, niñas y adolescentes, adultos mayores y personas con discapacidad en situación de vulnerabilidad.","Menores de edad institucionalizados y en estado de vulnerabilidad resuelta su situación jurídica","","Inclusión y Equidad","","","",1,1]
[145,"Dirección de Juridico","Consejo Municipal de la Familia",8,"ESTUDIOS SOCIOFAMILIAR","02-Feb","ADOPCIONES",2,5,"SALAS NIÑO ALEJANDRA","asalas@difzapopan.gob.mx","38363444","1101","ESTUDIOS SOCIOFAMILIAR","SESION","CAPACITACIÓN COMUNITARIA",10,"SESION","ANUAL","MENSUAL","REGISTRO, EXPEDIENTE, PADRON, INVESTIGACION","AFLUENCIA DE BENEFICIARIOS",null,"Dif municipal de zapopan","Dirección jurídica","","Lic. Alejandra Salas Niño","Consejo municipal de la familia","Consejo de familia es un organo de participación ciudadana que sirve como enlace entre las instituciones públicas o privadas que tengan por objeto la atención de niños, niñas y adolescentes, adultos mayores y personas con discapacidad en situación de vulnerabilidad.","Menores de edad institucionalizados y en estado de vulnerabilidad resuelta su situación jurídica","","Inclusión y Equidad","","","",1,2]
[145,"Dirección de Juridico","Consejo Municipal de la Familia",8,"ESTUDIOS SOCIOFAMILIAR","10-Oct","ADOPCIONES",2,5,"SALAS NIÑO ALEJANDRA","asalas@difzapopan.gob.mx","38363444","1101","ESTUDIOS SOCIOFAMILIAR","SESION","CAPACITACIÓN COMUNITARIA",10,"SESION","ANUAL","MENSUAL","REGISTRO, EXPEDIENTE, PADRON, INVESTIGACION","AFLUENCIA DE BENEFICIARIOS",null,"Dif municipal de zapopan","Dirección jurídica","","Lic. Alejandra Salas Niño","Consejo municipal de la familia","Consejo de familia es un organo de participación ciudadana que sirve como enlace entre las instituciones públicas o privadas que tengan por objeto la atención de niños, niñas y adolescentes, adultos mayores y personas con discapacidad en situación de vulnerabilidad.","Menores de edad institucionalizados y en estado de vulnerabilidad resuelta su situación jurídica","","Inclusión y Equidad","","","",1,1]
[146,"Dirección de Juridico","Consejo Municipal de la Familia",8,"INFORMES SOBRE ADOPCIÓN","03-Mar","ADOPCIONES",2,5,"SALAS NIÑO ALEJANDRA","asalas@difzapopan.gob.mx","38363444","1101","INFORMES SOBRE ADOPCIÓN","SESION","CAPACITACIÓN COMUNITARIA",20,"SESION","ANUAL","MENSUAL","REGISTRO, EXPEDIENTE, PADRON, INVESTIGACION","AFLUENCIA DE BENEFICIARIOS",null,"Dif municipal de zapopan","Dirección jurídica","","Lic. Alejandra Salas Niño","Consejo municipal de la familia","Consejo de familia es un organo de participación ciudadana que sirve como enlace entre las instituciones públicas o privadas que tengan por objeto la atención de niños, niñas y adolescentes, adultos mayores y personas con discapacidad en situación de vulnerabilidad.","Menores de edad institucionalizados y en estado de vulnerabilidad resuelta su situación jurídica","","Inclusión y Equidad","","","",1,3]
[146,"Dirección de Juridico","Consejo Municipal de la Familia",8,"INFORMES SOBRE ADOPCIÓN","10-Oct","ADOPCIONES",2,5,"SALAS NIÑO ALEJANDRA","asalas@difzapopan.gob.mx","38363444","1101","INFORMES SOBRE ADOPCIÓN","SESION","CAPACITACIÓN COMUNITARIA",20,"SESION","ANUAL","MENSUAL","REGISTRO, EXPEDIENTE, PADRON, INVESTIGACION","AFLUENCIA DE BENEFICIARIOS",null,"Dif municipal de zapopan","Dirección jurídica","","Lic. Alejandra Salas Niño","Consejo municipal de la familia","Consejo de familia es un organo de participación ciudadana que sirve como enlace entre las instituciones públicas o privadas que tengan por objeto la atención de niños, niñas y adolescentes, adultos mayores y personas con discapacidad en situación de vulnerabilidad.","Menores de edad institucionalizados y en estado de vulnerabilidad resuelta su situación jurídica","","Inclusión y Equidad","","","",1,1]
[148,"Dirección de Juridico","Consejo Municipal de la Familia",8,"SEGUIMIENTOS POST ADOPTIVOS","10-Oct","ADOPCIONES",2,5,"SALAS NIÑO ALEJANDRA","asalas@difzapopan.gob.mx","38363444","1101","SEGUIMIENTOS POST ADOPTIVOS","SESION","CAPACITACIÓN COMUNITARIA",50,"SESION","ANUAL","MENSUAL","REGISTRO, EXPEDIENTE, PADRON, INVESTIGACION","AFLUENCIA DE BENEFICIARIOS",null,"Dif municipal de zapopan","Dirección jurídica","","Lic. Alejandra Salas Niño","Consejo municipal de la familia","Consejo de familia es un organo de participación ciudadana que sirve como enlace entre las instituciones públicas o privadas que tengan por objeto la atención de niños, niñas y adolescentes, adultos mayores y personas con discapacidad en situación de vulnerabilidad.","Menores de edad institucionalizados y en estado de vulnerabilidad resuelta su situación jurídica","","Inclusión y Equidad","","","",1,1]
[149,"Dirección de Juridico","Consejo Municipal de la Familia",8,"VALORACIONES","01-Ene","ADOPCIONES",2,5,"SALAS NIÑO ALEJANDRA","asalas@difzapopan.gob.mx","38363444","1101","VALORACIONES","SESION","CAPACITACIÓN COMUNITARIA",10,"SESION","ANUAL","MENSUAL","REGISTRO, EXPEDIENTE, PADRON, INVESTIGACION","AFLUENCIA DE BENEFICIARIOS",null,"Dif municipal de zapopan","Dirección jurídica","","Lic. Alejandra Salas Niño","Consejo municipal de la familia","Consejo de familia es un organo de participación ciudadana que sirve como enlace entre las instituciones públicas o privadas que tengan por objeto la atención de niños, niñas y adolescentes, adultos mayores y personas con discapacidad en situación de vulnerabilidad.","Menores de edad institucionalizados y en estado de vulnerabilidad resuelta su situación jurídica","","Inclusión y Equidad","","","",1,2]
[150,"Dirección de Juridico","Consejo Municipal de la Familia",8,"VISITAS","01-Ene","ADOPCIONES",2,5,"SALAS NIÑO ALEJANDRA","asalas@difzapopan.gob.mx","38363444","1101","VISITAS","INVESTIGACIÓN","VISITA PARA SEGUIMIENTO E INVESTIGACIÓN",20,"VISITAS","ANUAL","MENSUAL","DOCUMENTOS, FOTOGRAFIAS, OTRAS PRUEBAS.","AFLUENCIA DE BENEFICIARIOS",null,"Dif municipal de zapopan","Dirección jurídica","","Lic. Alejandra Salas Niño","Consejo municipal de la familia","Consejo de familia es un organo de participación ciudadana que sirve como enlace entre las instituciones públicas o privadas que tengan por objeto la atención de niños, niñas y adolescentes, adultos mayores y personas con discapacidad en situación de vulnerabilidad.","Menores de edad institucionalizados y en estado de vulnerabilidad resuelta su situación jurídica","","Inclusión y Equidad","","","",1,12]
[150,"Dirección de Juridico","Consejo Municipal de la Familia",8,"VISITAS","02-Feb","ADOPCIONES",2,5,"SALAS NIÑO ALEJANDRA","asalas@difzapopan.gob.mx","38363444","1101","VISITAS","INVESTIGACIÓN","VISITA PARA SEGUIMIENTO E INVESTIGACIÓN",20,"VISITAS","ANUAL","MENSUAL","DOCUMENTOS, FOTOGRAFIAS, OTRAS PRUEBAS.","AFLUENCIA DE BENEFICIARIOS",null,"Dif municipal de zapopan","Dirección jurídica","","Lic. Alejandra Salas Niño","Consejo municipal de la familia","Consejo de familia es un organo de participación ciudadana que sirve como enlace entre las instituciones públicas o privadas que tengan por objeto la atención de niños, niñas y adolescentes, adultos mayores y personas con discapacidad en situación de vulnerabilidad.","Menores de edad institucionalizados y en estado de vulnerabilidad resuelta su situación jurídica","","Inclusión y Equidad","","","",1,18]
[150,"Dirección de Juridico","Consejo Municipal de la Familia",8,"VISITAS","03-Mar","ADOPCIONES",2,5,"SALAS NIÑO ALEJANDRA","asalas@difzapopan.gob.mx","38363444","1101","VISITAS","INVESTIGACIÓN","VISITA PARA SEGUIMIENTO E INVESTIGACIÓN",20,"VISITAS","ANUAL","MENSUAL","DOCUMENTOS, FOTOGRAFIAS, OTRAS PRUEBAS.","AFLUENCIA DE BENEFICIARIOS",null,"Dif municipal de zapopan","Dirección jurídica","","Lic. Alejandra Salas Niño","Consejo municipal de la familia","Consejo de familia es un organo de participación ciudadana que sirve como enlace entre las instituciones públicas o privadas que tengan por objeto la atención de niños, niñas y adolescentes, adultos mayores y personas con discapacidad en situación de vulnerabilidad.","Menores de edad institucionalizados y en estado de vulnerabilidad resuelta su situación jurídica","","Inclusión y Equidad","","","",1,1]
[150,"Dirección de Juridico","Consejo Municipal de la Familia",8,"VISITAS","06-Jun","ADOPCIONES",2,5,"SALAS NIÑO ALEJANDRA","asalas@difzapopan.gob.mx","38363444","1101","VISITAS","INVESTIGACIÓN","VISITA PARA SEGUIMIENTO E INVESTIGACIÓN",20,"VISITAS","ANUAL","MENSUAL","DOCUMENTOS, FOTOGRAFIAS, OTRAS PRUEBAS.","AFLUENCIA DE BENEFICIARIOS",null,"Dif municipal de zapopan","Dirección jurídica","","Lic. Alejandra Salas Niño","Consejo municipal de la familia","Consejo de familia es un organo de participación ciudadana que sirve como enlace entre las instituciones públicas o privadas que tengan por objeto la atención de niños, niñas y adolescentes, adultos mayores y personas con discapacidad en situación de vulnerabilidad.","Menores de edad institucionalizados y en estado de vulnerabilidad resuelta su situación jurídica","","Inclusión y Equidad","","","",1,2]
[150,"Dirección de Juridico","Consejo Municipal de la Familia",8,"VISITAS","08-Ago","ADOPCIONES",2,5,"SALAS NIÑO ALEJANDRA","asalas@difzapopan.gob.mx","38363444","1101","VISITAS","INVESTIGACIÓN","VISITA PARA SEGUIMIENTO E INVESTIGACIÓN",20,"VISITAS","ANUAL","MENSUAL","DOCUMENTOS, FOTOGRAFIAS, OTRAS PRUEBAS.","AFLUENCIA DE BENEFICIARIOS",null,"Dif municipal de zapopan","Dirección jurídica","","Lic. Alejandra Salas Niño","Consejo municipal de la familia","Consejo de familia es un organo de participación ciudadana que sirve como enlace entre las instituciones públicas o privadas que tengan por objeto la atención de niños, niñas y adolescentes, adultos mayores y personas con discapacidad en situación de vulnerabilidad.","Menores de edad institucionalizados y en estado de vulnerabilidad resuelta su situación jurídica","","Inclusión y Equidad","","","",1,5]
[150,"Dirección de Juridico","Consejo Municipal de la Familia",8,"VISITAS","09-Sep","ADOPCIONES",2,5,"SALAS NIÑO ALEJANDRA","asalas@difzapopan.gob.mx","38363444","1101","VISITAS","INVESTIGACIÓN","VISITA PARA SEGUIMIENTO E INVESTIGACIÓN",20,"VISITAS","ANUAL","MENSUAL","DOCUMENTOS, FOTOGRAFIAS, OTRAS PRUEBAS.","AFLUENCIA DE BENEFICIARIOS",null,"Dif municipal de zapopan","Dirección jurídica","","Lic. Alejandra Salas Niño","Consejo municipal de la familia","Consejo de familia es un organo de participación ciudadana que sirve como enlace entre las instituciones públicas o privadas que tengan por objeto la atención de niños, niñas y adolescentes, adultos mayores y personas con discapacidad en situación de vulnerabilidad.","Menores de edad institucionalizados y en estado de vulnerabilidad resuelta su situación jurídica","","Inclusión y Equidad","","","",1,2]
[150,"Dirección de Juridico","Consejo Municipal de la Familia",8,"VISITAS","10-Oct","ADOPCIONES",2,5,"SALAS NIÑO ALEJANDRA","asalas@difzapopan.gob.mx","38363444","1101","VISITAS","INVESTIGACIÓN","VISITA PARA SEGUIMIENTO E INVESTIGACIÓN",20,"VISITAS","ANUAL","MENSUAL","DOCUMENTOS, FOTOGRAFIAS, OTRAS PRUEBAS.","AFLUENCIA DE BENEFICIARIOS",null,"Dif municipal de zapopan","Dirección jurídica","","Lic. Alejandra Salas Niño","Consejo municipal de la familia","Consejo de familia es un organo de participación ciudadana que sirve como enlace entre las instituciones públicas o privadas que tengan por objeto la atención de niños, niñas y adolescentes, adultos mayores y personas con discapacidad en situación de vulnerabilidad.","Menores de edad institucionalizados y en estado de vulnerabilidad resuelta su situación jurídica","","Inclusión y Equidad","","","",1,21]
[150,"Dirección de Juridico","Consejo Municipal de la Familia",8,"VISITAS","11-Nov","ADOPCIONES",2,5,"SALAS NIÑO ALEJANDRA","asalas@difzapopan.gob.mx","38363444","1101","VISITAS","INVESTIGACIÓN","VISITA PARA SEGUIMIENTO E INVESTIGACIÓN",20,"VISITAS","ANUAL","MENSUAL","DOCUMENTOS, FOTOGRAFIAS, OTRAS PRUEBAS.","AFLUENCIA DE BENEFICIARIOS",null,"Dif municipal de zapopan","Dirección jurídica","","Lic. Alejandra Salas Niño","Consejo municipal de la familia","Consejo de familia es un organo de participación ciudadana que sirve como enlace entre las instituciones públicas o privadas que tengan por objeto la atención de niños, niñas y adolescentes, adultos mayores y personas con discapacidad en situación de vulnerabilidad.","Menores de edad institucionalizados y en estado de vulnerabilidad resuelta su situación jurídica","","Inclusión y Equidad","","","",1,17]
[151,"Dirección de Juridico","Consejo Municipal de la Familia",9,"ASESORÍAS","01-Ene","CUSTODIA",2,5,"SALAS NIÑO ALEJANDRA","asalas@difzapopan.gob.mx","38363444","1101","ASESORÍAS","SESION / ASESORÍA","INFORMACIÓN Y AYUDA AL CIUDADANO",1650,"ASESORIA A CIUDADANO","ANUAL","MENSUAL","BITACORA","AFLUENCIA DE BENEFICIARIOS",null,"Dif municipal de zapopan","Dirección jurídica","","Lic. Alejandra Salas Niño","Consejo municipal de la familia","Consejo de familia es un órgano de participación ciudadana que sirve como enlace entre las instituciones públicas o privadas que tengan por objeto la atención de niños, niñas y adolescentes, adultos mayores y personas con discapacidad en situación de vulnerabilidad.","Menores de edad institucionalizados y en estado de vulnerabilidad resuelta su situación jurídica","","","","","",1,55]
[151,"Dirección de Juridico","Consejo Municipal de la Familia",9,"ASESORÍAS","02-Feb","CUSTODIA",2,5,"SALAS NIÑO ALEJANDRA","asalas@difzapopan.gob.mx","38363444","1101","ASESORÍAS","SESION / ASESORÍA","INFORMACIÓN Y AYUDA AL CIUDADANO",1650,"ASESORIA A CIUDADANO","ANUAL","MENSUAL","BITACORA","AFLUENCIA DE BENEFICIARIOS",null,"Dif municipal de zapopan","Dirección jurídica","","Lic. Alejandra Salas Niño","Consejo municipal de la familia","Consejo de familia es un órgano de participación ciudadana que sirve como enlace entre las instituciones públicas o privadas que tengan por objeto la atención de niños, niñas y adolescentes, adultos mayores y personas con discapacidad en situación de vulnerabilidad.","Menores de edad institucionalizados y en estado de vulnerabilidad resuelta su situación jurídica","","","","","",1,3]
[151,"Dirección de Juridico","Consejo Municipal de la Familia",9,"ASESORÍAS","10-Oct","CUSTODIA",2,5,"SALAS NIÑO ALEJANDRA","asalas@difzapopan.gob.mx","38363444","1101","ASESORÍAS","SESION / ASESORÍA","INFORMACIÓN Y AYUDA AL CIUDADANO",1650,"ASESORIA A CIUDADANO","ANUAL","MENSUAL","BITACORA","AFLUENCIA DE BENEFICIARIOS",null,"Dif municipal de zapopan","Dirección jurídica","","Lic. Alejandra Salas Niño","Consejo municipal de la familia","Consejo de familia es un órgano de participación ciudadana que sirve como enlace entre las instituciones públicas o privadas que tengan por objeto la atención de niños, niñas y adolescentes, adultos mayores y personas con discapacidad en situación de vulnerabilidad.","Menores de edad institucionalizados y en estado de vulnerabilidad resuelta su situación jurídica","","","","","",1,2]
[151,"Dirección de Juridico","Consejo Municipal de la Familia",9,"ASESORÍAS","11-Nov","CUSTODIA",2,5,"SALAS NIÑO ALEJANDRA","asalas@difzapopan.gob.mx","38363444","1101","ASESORÍAS","SESION / ASESORÍA","INFORMACIÓN Y AYUDA AL CIUDADANO",1650,"ASESORIA A CIUDADANO","ANUAL","MENSUAL","BITACORA","AFLUENCIA DE BENEFICIARIOS",null,"Dif municipal de zapopan","Dirección jurídica","","Lic. Alejandra Salas Niño","Consejo municipal de la familia","Consejo de familia es un órgano de participación ciudadana que sirve como enlace entre las instituciones públicas o privadas que tengan por objeto la atención de niños, niñas y adolescentes, adultos mayores y personas con discapacidad en situación de vulnerabilidad.","Menores de edad institucionalizados y en estado de vulnerabilidad resuelta su situación jurídica","","","","","",1,8]
[151,"Dirección de Juridico","Consejo Municipal de la Familia",9,"ASESORÍAS","12-Dic","CUSTODIA",2,5,"SALAS NIÑO ALEJANDRA","asalas@difzapopan.gob.mx","38363444","1101","ASESORÍAS","SESION / ASESORÍA","INFORMACIÓN Y AYUDA AL CIUDADANO",1650,"ASESORIA A CIUDADANO","ANUAL","MENSUAL","BITACORA","AFLUENCIA DE BENEFICIARIOS",null,"Dif municipal de zapopan","Dirección jurídica","","Lic. Alejandra Salas Niño","Consejo municipal de la familia","Consejo de familia es un órgano de participación ciudadana que sirve como enlace entre las instituciones públicas o privadas que tengan por objeto la atención de niños, niñas y adolescentes, adultos mayores y personas con discapacidad en situación de vulnerabilidad.","Menores de edad institucionalizados y en estado de vulnerabilidad resuelta su situación jurídica","","","","","",1,9]
[152,"Dirección de Juridico","Consejo Municipal de la Familia",9,"ENTREVISTA ORIENTACIÓN","01-Ene","CUSTODIA",2,5,"SALAS NIÑO ALEJANDRA","asalas@difzapopan.gob.mx","38363444","1101","ENTREVISTA ORIENTACIÓN","SESION","CAPACITACIÓN COMUNITARIA",490,"SESION","ANUAL","MENSUAL","REGISTRO","AFLUENCIA DE BENEFICIARIOS",null,"Dif municipal de zapopan","Dirección jurídica","","Lic. Alejandra Salas Niño","Consejo municipal de la familia","Consejo de familia es un órgano de participación ciudadana que sirve como enlace entre las instituciones públicas o privadas que tengan por objeto la atención de niños, niñas y adolescentes, adultos mayores y personas con discapacidad en situación de vulnerabilidad.","Menores de edad institucionalizados y en estado de vulnerabilidad resuelta su situación jurídica","","","","","",1,92]
[152,"Dirección de Juridico","Consejo Municipal de la Familia",9,"ENTREVISTA ORIENTACIÓN","02-Feb","CUSTODIA",2,5,"SALAS NIÑO ALEJANDRA","asalas@difzapopan.gob.mx","38363444","1101","ENTREVISTA ORIENTACIÓN","SESION","CAPACITACIÓN COMUNITARIA",490,"SESION","ANUAL","MENSUAL","REGISTRO","AFLUENCIA DE BENEFICIARIOS",null,"Dif municipal de zapopan","Dirección jurídica","","Lic. Alejandra Salas Niño","Consejo municipal de la familia","Consejo de familia es un órgano de participación ciudadana que sirve como enlace entre las instituciones públicas o privadas que tengan por objeto la atención de niños, niñas y adolescentes, adultos mayores y personas con discapacidad en situación de vulnerabilidad.","Menores de edad institucionalizados y en estado de vulnerabilidad resuelta su situación jurídica","","","","","",1,33]
[152,"Dirección de Juridico","Consejo Municipal de la Familia",9,"ENTREVISTA ORIENTACIÓN","03-Mar","CUSTODIA",2,5,"SALAS NIÑO ALEJANDRA","asalas@difzapopan.gob.mx","38363444","1101","ENTREVISTA ORIENTACIÓN","SESION","CAPACITACIÓN COMUNITARIA",490,"SESION","ANUAL","MENSUAL","REGISTRO","AFLUENCIA DE BENEFICIARIOS",null,"Dif municipal de zapopan","Dirección jurídica","","Lic. Alejandra Salas Niño","Consejo municipal de la familia","Consejo de familia es un órgano de participación ciudadana que sirve como enlace entre las instituciones públicas o privadas que tengan por objeto la atención de niños, niñas y adolescentes, adultos mayores y personas con discapacidad en situación de vulnerabilidad.","Menores de edad institucionalizados y en estado de vulnerabilidad resuelta su situación jurídica","","","","","",1,15]
[152,"Dirección de Juridico","Consejo Municipal de la Familia",9,"ENTREVISTA ORIENTACIÓN","04-Abr","CUSTODIA",2,5,"SALAS NIÑO ALEJANDRA","asalas@difzapopan.gob.mx","38363444","1101","ENTREVISTA ORIENTACIÓN","SESION","CAPACITACIÓN COMUNITARIA",490,"SESION","ANUAL","MENSUAL","REGISTRO","AFLUENCIA DE BENEFICIARIOS",null,"Dif municipal de zapopan","Dirección jurídica","","Lic. Alejandra Salas Niño","Consejo municipal de la familia","Consejo de familia es un órgano de participación ciudadana que sirve como enlace entre las instituciones públicas o privadas que tengan por objeto la atención de niños, niñas y adolescentes, adultos mayores y personas con discapacidad en situación de vulnerabilidad.","Menores de edad institucionalizados y en estado de vulnerabilidad resuelta su situación jurídica","","","","","",1,8]
[152,"Dirección de Juridico","Consejo Municipal de la Familia",9,"ENTREVISTA ORIENTACIÓN","06-Jun","CUSTODIA",2,5,"SALAS NIÑO ALEJANDRA","asalas@difzapopan.gob.mx","38363444","1101","ENTREVISTA ORIENTACIÓN","SESION","CAPACITACIÓN COMUNITARIA",490,"SESION","ANUAL","MENSUAL","REGISTRO","AFLUENCIA DE BENEFICIARIOS",null,"Dif municipal de zapopan","Dirección jurídica","","Lic. Alejandra Salas Niño","Consejo municipal de la familia","Consejo de familia es un órgano de participación ciudadana que sirve como enlace entre las instituciones públicas o privadas que tengan por objeto la atención de niños, niñas y adolescentes, adultos mayores y personas con discapacidad en situación de vulnerabilidad.","Menores de edad institucionalizados y en estado de vulnerabilidad resuelta su situación jurídica","","","","","",1,2]
[152,"Dirección de Juridico","Consejo Municipal de la Familia",9,"ENTREVISTA ORIENTACIÓN","09-Sep","CUSTODIA",2,5,"SALAS NIÑO ALEJANDRA","asalas@difzapopan.gob.mx","38363444","1101","ENTREVISTA ORIENTACIÓN","SESION","CAPACITACIÓN COMUNITARIA",490,"SESION","ANUAL","MENSUAL","REGISTRO","AFLUENCIA DE BENEFICIARIOS",null,"Dif municipal de zapopan","Dirección jurídica","","Lic. Alejandra Salas Niño","Consejo municipal de la familia","Consejo de familia es un órgano de participación ciudadana que sirve como enlace entre las instituciones públicas o privadas que tengan por objeto la atención de niños, niñas y adolescentes, adultos mayores y personas con discapacidad en situación de vulnerabilidad.","Menores de edad institucionalizados y en estado de vulnerabilidad resuelta su situación jurídica","","","","","",1,1]
[152,"Dirección de Juridico","Consejo Municipal de la Familia",9,"ENTREVISTA ORIENTACIÓN","10-Oct","CUSTODIA",2,5,"SALAS NIÑO ALEJANDRA","asalas@difzapopan.gob.mx","38363444","1101","ENTREVISTA ORIENTACIÓN","SESION","CAPACITACIÓN COMUNITARIA",490,"SESION","ANUAL","MENSUAL","REGISTRO","AFLUENCIA DE BENEFICIARIOS",null,"Dif municipal de zapopan","Dirección jurídica","","Lic. Alejandra Salas Niño","Consejo municipal de la familia","Consejo de familia es un órgano de participación ciudadana que sirve como enlace entre las instituciones públicas o privadas que tengan por objeto la atención de niños, niñas y adolescentes, adultos mayores y personas con discapacidad en situación de vulnerabilidad.","Menores de edad institucionalizados y en estado de vulnerabilidad resuelta su situación jurídica","","","","","",1,15]
[152,"Dirección de Juridico","Consejo Municipal de la Familia",9,"ENTREVISTA ORIENTACIÓN","11-Nov","CUSTODIA",2,5,"SALAS NIÑO ALEJANDRA","asalas@difzapopan.gob.mx","38363444","1101","ENTREVISTA ORIENTACIÓN","SESION","CAPACITACIÓN COMUNITARIA",490,"SESION","ANUAL","MENSUAL","REGISTRO","AFLUENCIA DE BENEFICIARIOS",null,"Dif municipal de zapopan","Dirección jurídica","","Lic. Alejandra Salas Niño","Consejo municipal de la familia","Consejo de familia es un órgano de participación ciudadana que sirve como enlace entre las instituciones públicas o privadas que tengan por objeto la atención de niños, niñas y adolescentes, adultos mayores y personas con discapacidad en situación de vulnerabilidad.","Menores de edad institucionalizados y en estado de vulnerabilidad resuelta su situación jurídica","","","","","",1,70]
[152,"Dirección de Juridico","Consejo Municipal de la Familia",9,"ENTREVISTA ORIENTACIÓN","12-Dic","CUSTODIA",2,5,"SALAS NIÑO ALEJANDRA","asalas@difzapopan.gob.mx","38363444","1101","ENTREVISTA ORIENTACIÓN","SESION","CAPACITACIÓN COMUNITARIA",490,"SESION","ANUAL","MENSUAL","REGISTRO","AFLUENCIA DE BENEFICIARIOS",null,"Dif municipal de zapopan","Dirección jurídica","","Lic. Alejandra Salas Niño","Consejo municipal de la familia","Consejo de familia es un órgano de participación ciudadana que sirve como enlace entre las instituciones públicas o privadas que tengan por objeto la atención de niños, niñas y adolescentes, adultos mayores y personas con discapacidad en situación de vulnerabilidad.","Menores de edad institucionalizados y en estado de vulnerabilidad resuelta su situación jurídica","","","","","",1,5]
[153,"Dirección de Juridico","Consejo Municipal de la Familia",9,"ESTUDIOS SOCIOFAMILIAR","01-Ene","CUSTODIA",2,5,"SALAS NIÑO ALEJANDRA","asalas@difzapopan.gob.mx","38363444","1101","ESTUDIOS SOCIOFAMILIAR","SESION","CAPACITACIÓN COMUNITARIA",30,"SESION","ANUAL","MENSUAL","REGISTRO, EXPEDIENTE, PADRON, INVESTIGACION","AFLUENCIA DE BENEFICIARIOS",null,"Dif municipal de zapopan","Dirección jurídica","","Lic. Alejandra Salas Niño","Consejo municipal de la familia","Consejo de familia es un órgano de participación ciudadana que sirve como enlace entre las instituciones públicas o privadas que tengan por objeto la atención de niños, niñas y adolescentes, adultos mayores y personas con discapacidad en situación de vulnerabilidad.","Menores de edad institucionalizados y en estado de vulnerabilidad resuelta su situación jurídica","","","","","",1,1]
[153,"Dirección de Juridico","Consejo Municipal de la Familia",9,"ESTUDIOS SOCIOFAMILIAR","11-Nov","CUSTODIA",2,5,"SALAS NIÑO ALEJANDRA","asalas@difzapopan.gob.mx","38363444","1101","ESTUDIOS SOCIOFAMILIAR","SESION","CAPACITACIÓN COMUNITARIA",30,"SESION","ANUAL","MENSUAL","REGISTRO, EXPEDIENTE, PADRON, INVESTIGACION","AFLUENCIA DE BENEFICIARIOS",null,"Dif municipal de zapopan","Dirección jurídica","","Lic. Alejandra Salas Niño","Consejo municipal de la familia","Consejo de familia es un órgano de participación ciudadana que sirve como enlace entre las instituciones públicas o privadas que tengan por objeto la atención de niños, niñas y adolescentes, adultos mayores y personas con discapacidad en situación de vulnerabilidad.","Menores de edad institucionalizados y en estado de vulnerabilidad resuelta su situación jurídica","","","","","",1,4]
[154,"Dirección de Juridico","Consejo Municipal de la Familia",9,"REPRESENTACIONES JUDICIALES, MINISTERIALES Y ADMINISTRATIVAS","01-Ene","CUSTODIA",2,5,"SALAS NIÑO ALEJANDRA","asalas@difzapopan.gob.mx","38363444","1101","REPRESENTACIONES JUDICIALES, MINISTERIALES Y ADMINISTRATIVAS","SESION","CAPACITACIÓN COMUNITARIA",290,"SESION","ANUAL","MENSUAL","REGISTRO, EXPEDIENTE, PADRON, INVESTIGACION","AFLUENCIA DE BENEFICIARIOS",null,"Dif municipal de zapopan","Dirección jurídica","","Lic. Alejandra Salas Niño","Consejo municipal de la familia","Consejo de familia es un órgano de participación ciudadana que sirve como enlace entre las instituciones públicas o privadas que tengan por objeto la atención de niños, niñas y adolescentes, adultos mayores y personas con discapacidad en situación de vulnerabilidad.","Menores de edad institucionalizados y en estado de vulnerabilidad resuelta su situación jurídica","","","","","",1,30]
[154,"Dirección de Juridico","Consejo Municipal de la Familia",9,"REPRESENTACIONES JUDICIALES, MINISTERIALES Y ADMINISTRATIVAS","11-Nov","CUSTODIA",2,5,"SALAS NIÑO ALEJANDRA","asalas@difzapopan.gob.mx","38363444","1101","REPRESENTACIONES JUDICIALES, MINISTERIALES Y ADMINISTRATIVAS","SESION","CAPACITACIÓN COMUNITARIA",290,"SESION","ANUAL","MENSUAL","REGISTRO, EXPEDIENTE, PADRON, INVESTIGACION","AFLUENCIA DE BENEFICIARIOS",null,"Dif municipal de zapopan","Dirección jurídica","","Lic. Alejandra Salas Niño","Consejo municipal de la familia","Consejo de familia es un órgano de participación ciudadana que sirve como enlace entre las instituciones públicas o privadas que tengan por objeto la atención de niños, niñas y adolescentes, adultos mayores y personas con discapacidad en situación de vulnerabilidad.","Menores de edad institucionalizados y en estado de vulnerabilidad resuelta su situación jurídica","","","","","",1,9]
[154,"Dirección de Juridico","Consejo Municipal de la Familia",9,"REPRESENTACIONES JUDICIALES, MINISTERIALES Y ADMINISTRATIVAS","12-Dic","CUSTODIA",2,5,"SALAS NIÑO ALEJANDRA","asalas@difzapopan.gob.mx","38363444","1101","REPRESENTACIONES JUDICIALES, MINISTERIALES Y ADMINISTRATIVAS","SESION","CAPACITACIÓN COMUNITARIA",290,"SESION","ANUAL","MENSUAL","REGISTRO, EXPEDIENTE, PADRON, INVESTIGACION","AFLUENCIA DE BENEFICIARIOS",null,"Dif municipal de zapopan","Dirección jurídica","","Lic. Alejandra Salas Niño","Consejo municipal de la familia","Consejo de familia es un órgano de participación ciudadana que sirve como enlace entre las instituciones públicas o privadas que tengan por objeto la atención de niños, niñas y adolescentes, adultos mayores y personas con discapacidad en situación de vulnerabilidad.","Menores de edad institucionalizados y en estado de vulnerabilidad resuelta su situación jurídica","","","","","",1,12]
[155,"Dirección de Juridico","Consejo Municipal de la Familia",9,"VALORACIONES","01-Ene","CUSTODIA",2,5,"SALAS NIÑO ALEJANDRA","asalas@difzapopan.gob.mx","38363444","1101","VALORACIONES","SESION","CAPACITACIÓN COMUNITARIA",50,"SESION","ANUAL","MENSUAL","REGISTRO, EXPEDIENTE, PADRON, INVESTIGACION","AFLUENCIA DE BENEFICIARIOS",null,"Dif municipal de zapopan","Dirección jurídica","","Lic. Alejandra Salas Niño","Consejo municipal de la familia","Consejo de familia es un órgano de participación ciudadana que sirve como enlace entre las instituciones públicas o privadas que tengan por objeto la atención de niños, niñas y adolescentes, adultos mayores y personas con discapacidad en situación de vulnerabilidad.","Menores de edad institucionalizados y en estado de vulnerabilidad resuelta su situación jurídica","","","","","",1,4]
[155,"Dirección de Juridico","Consejo Municipal de la Familia",9,"VALORACIONES","02-Feb","CUSTODIA",2,5,"SALAS NIÑO ALEJANDRA","asalas@difzapopan.gob.mx","38363444","1101","VALORACIONES","SESION","CAPACITACIÓN COMUNITARIA",50,"SESION","ANUAL","MENSUAL","REGISTRO, EXPEDIENTE, PADRON, INVESTIGACION","AFLUENCIA DE BENEFICIARIOS",null,"Dif municipal de zapopan","Dirección jurídica","","Lic. Alejandra Salas Niño","Consejo municipal de la familia","Consejo de familia es un órgano de participación ciudadana que sirve como enlace entre las instituciones públicas o privadas que tengan por objeto la atención de niños, niñas y adolescentes, adultos mayores y personas con discapacidad en situación de vulnerabilidad.","Menores de edad institucionalizados y en estado de vulnerabilidad resuelta su situación jurídica","","","","","",1,6]
[155,"Dirección de Juridico","Consejo Municipal de la Familia",9,"VALORACIONES","03-Mar","CUSTODIA",2,5,"SALAS NIÑO ALEJANDRA","asalas@difzapopan.gob.mx","38363444","1101","VALORACIONES","SESION","CAPACITACIÓN COMUNITARIA",50,"SESION","ANUAL","MENSUAL","REGISTRO, EXPEDIENTE, PADRON, INVESTIGACION","AFLUENCIA DE BENEFICIARIOS",null,"Dif municipal de zapopan","Dirección jurídica","","Lic. Alejandra Salas Niño","Consejo municipal de la familia","Consejo de familia es un órgano de participación ciudadana que sirve como enlace entre las instituciones públicas o privadas que tengan por objeto la atención de niños, niñas y adolescentes, adultos mayores y personas con discapacidad en situación de vulnerabilidad.","Menores de edad institucionalizados y en estado de vulnerabilidad resuelta su situación jurídica","","","","","",1,6]
[155,"Dirección de Juridico","Consejo Municipal de la Familia",9,"VALORACIONES","11-Nov","CUSTODIA",2,5,"SALAS NIÑO ALEJANDRA","asalas@difzapopan.gob.mx","38363444","1101","VALORACIONES","SESION","CAPACITACIÓN COMUNITARIA",50,"SESION","ANUAL","MENSUAL","REGISTRO, EXPEDIENTE, PADRON, INVESTIGACION","AFLUENCIA DE BENEFICIARIOS",null,"Dif municipal de zapopan","Dirección jurídica","","Lic. Alejandra Salas Niño","Consejo municipal de la familia","Consejo de familia es un órgano de participación ciudadana que sirve como enlace entre las instituciones públicas o privadas que tengan por objeto la atención de niños, niñas y adolescentes, adultos mayores y personas con discapacidad en situación de vulnerabilidad.","Menores de edad institucionalizados y en estado de vulnerabilidad resuelta su situación jurídica","","","","","",1,2]
[155,"Dirección de Juridico","Consejo Municipal de la Familia",9,"VALORACIONES","12-Dic","CUSTODIA",2,5,"SALAS NIÑO ALEJANDRA","asalas@difzapopan.gob.mx","38363444","1101","VALORACIONES","SESION","CAPACITACIÓN COMUNITARIA",50,"SESION","ANUAL","MENSUAL","REGISTRO, EXPEDIENTE, PADRON, INVESTIGACION","AFLUENCIA DE BENEFICIARIOS",null,"Dif municipal de zapopan","Dirección jurídica","","Lic. Alejandra Salas Niño","Consejo municipal de la familia","Consejo de familia es un órgano de participación ciudadana que sirve como enlace entre las instituciones públicas o privadas que tengan por objeto la atención de niños, niñas y adolescentes, adultos mayores y personas con discapacidad en situación de vulnerabilidad.","Menores de edad institucionalizados y en estado de vulnerabilidad resuelta su situación jurídica","","","","","",1,3]
[156,"Dirección de Juridico","Consejo Municipal de la Familia",9,"VISITAS","01-Ene","CUSTODIA",2,5,"SALAS NIÑO ALEJANDRA","asalas@difzapopan.gob.mx","38363444","1101","VISITAS","INVESTIGACIÓN","VISITA PARA SEGUIMIENTO E INVESTIGACIÓN",400,"VISITAS","ANUAL","MENSUAL","DOCUMENTOS, FOTOGRAFIAS, OTRAS PRUEBAS.","AFLUENCIA DE BENEFICIARIOS",null,"Dif municipal de zapopan","Dirección jurídica","","Lic. Alejandra Salas Niño","Consejo municipal de la familia","Consejo de familia es un órgano de participación ciudadana que sirve como enlace entre las instituciones públicas o privadas que tengan por objeto la atención de niños, niñas y adolescentes, adultos mayores y personas con discapacidad en situación de vulnerabilidad.","Menores de edad institucionalizados y en estado de vulnerabilidad resuelta su situación jurídica","","","","","",1,44]
[156,"Dirección de Juridico","Consejo Municipal de la Familia",9,"VISITAS","02-Feb","CUSTODIA",2,5,"SALAS NIÑO ALEJANDRA","asalas@difzapopan.gob.mx","38363444","1101","VISITAS","INVESTIGACIÓN","VISITA PARA SEGUIMIENTO E INVESTIGACIÓN",400,"VISITAS","ANUAL","MENSUAL","DOCUMENTOS, FOTOGRAFIAS, OTRAS PRUEBAS.","AFLUENCIA DE BENEFICIARIOS",null,"Dif municipal de zapopan","Dirección jurídica","","Lic. Alejandra Salas Niño","Consejo municipal de la familia","Consejo de familia es un órgano de participación ciudadana que sirve como enlace entre las instituciones públicas o privadas que tengan por objeto la atención de niños, niñas y adolescentes, adultos mayores y personas con discapacidad en situación de vulnerabilidad.","Menores de edad institucionalizados y en estado de vulnerabilidad resuelta su situación jurídica","","","","","",1,12]
[156,"Dirección de Juridico","Consejo Municipal de la Familia",9,"VISITAS","03-Mar","CUSTODIA",2,5,"SALAS NIÑO ALEJANDRA","asalas@difzapopan.gob.mx","38363444","1101","VISITAS","INVESTIGACIÓN","VISITA PARA SEGUIMIENTO E INVESTIGACIÓN",400,"VISITAS","ANUAL","MENSUAL","DOCUMENTOS, FOTOGRAFIAS, OTRAS PRUEBAS.","AFLUENCIA DE BENEFICIARIOS",null,"Dif municipal de zapopan","Dirección jurídica","","Lic. Alejandra Salas Niño","Consejo municipal de la familia","Consejo de familia es un órgano de participación ciudadana que sirve como enlace entre las instituciones públicas o privadas que tengan por objeto la atención de niños, niñas y adolescentes, adultos mayores y personas con discapacidad en situación de vulnerabilidad.","Menores de edad institucionalizados y en estado de vulnerabilidad resuelta su situación jurídica","","","","","",1,19]
[156,"Dirección de Juridico","Consejo Municipal de la Familia",9,"VISITAS","04-Abr","CUSTODIA",2,5,"SALAS NIÑO ALEJANDRA","asalas@difzapopan.gob.mx","38363444","1101","VISITAS","INVESTIGACIÓN","VISITA PARA SEGUIMIENTO E INVESTIGACIÓN",400,"VISITAS","ANUAL","MENSUAL","DOCUMENTOS, FOTOGRAFIAS, OTRAS PRUEBAS.","AFLUENCIA DE BENEFICIARIOS",null,"Dif municipal de zapopan","Dirección jurídica","","Lic. Alejandra Salas Niño","Consejo municipal de la familia","Consejo de familia es un órgano de participación ciudadana que sirve como enlace entre las instituciones públicas o privadas que tengan por objeto la atención de niños, niñas y adolescentes, adultos mayores y personas con discapacidad en situación de vulnerabilidad.","Menores de edad institucionalizados y en estado de vulnerabilidad resuelta su situación jurídica","","","","","",1,2]
[156,"Dirección de Juridico","Consejo Municipal de la Familia",9,"VISITAS","07-Jul","CUSTODIA",2,5,"SALAS NIÑO ALEJANDRA","asalas@difzapopan.gob.mx","38363444","1101","VISITAS","INVESTIGACIÓN","VISITA PARA SEGUIMIENTO E INVESTIGACIÓN",400,"VISITAS","ANUAL","MENSUAL","DOCUMENTOS, FOTOGRAFIAS, OTRAS PRUEBAS.","AFLUENCIA DE BENEFICIARIOS",null,"Dif municipal de zapopan","Dirección jurídica","","Lic. Alejandra Salas Niño","Consejo municipal de la familia","Consejo de familia es un órgano de participación ciudadana que sirve como enlace entre las instituciones públicas o privadas que tengan por objeto la atención de niños, niñas y adolescentes, adultos mayores y personas con discapacidad en situación de vulnerabilidad.","Menores de edad institucionalizados y en estado de vulnerabilidad resuelta su situación jurídica","","","","","",1,1]
[156,"Dirección de Juridico","Consejo Municipal de la Familia",9,"VISITAS","10-Oct","CUSTODIA",2,5,"SALAS NIÑO ALEJANDRA","asalas@difzapopan.gob.mx","38363444","1101","VISITAS","INVESTIGACIÓN","VISITA PARA SEGUIMIENTO E INVESTIGACIÓN",400,"VISITAS","ANUAL","MENSUAL","DOCUMENTOS, FOTOGRAFIAS, OTRAS PRUEBAS.","AFLUENCIA DE BENEFICIARIOS",null,"Dif municipal de zapopan","Dirección jurídica","","Lic. Alejandra Salas Niño","Consejo municipal de la familia","Consejo de familia es un órgano de participación ciudadana que sirve como enlace entre las instituciones públicas o privadas que tengan por objeto la atención de niños, niñas y adolescentes, adultos mayores y personas con discapacidad en situación de vulnerabilidad.","Menores de edad institucionalizados y en estado de vulnerabilidad resuelta su situación jurídica","","","","","",1,5]
[156,"Dirección de Juridico","Consejo Municipal de la Familia",9,"VISITAS","11-Nov","CUSTODIA",2,5,"SALAS NIÑO ALEJANDRA","asalas@difzapopan.gob.mx","38363444","1101","VISITAS","INVESTIGACIÓN","VISITA PARA SEGUIMIENTO E INVESTIGACIÓN",400,"VISITAS","ANUAL","MENSUAL","DOCUMENTOS, FOTOGRAFIAS, OTRAS PRUEBAS.","AFLUENCIA DE BENEFICIARIOS",null,"Dif municipal de zapopan","Dirección jurídica","","Lic. Alejandra Salas Niño","Consejo municipal de la familia","Consejo de familia es un órgano de participación ciudadana que sirve como enlace entre las instituciones públicas o privadas que tengan por objeto la atención de niños, niñas y adolescentes, adultos mayores y personas con discapacidad en situación de vulnerabilidad.","Menores de edad institucionalizados y en estado de vulnerabilidad resuelta su situación jurídica","","","","","",1,41]
[156,"Dirección de Juridico","Consejo Municipal de la Familia",9,"VISITAS","12-Dic","CUSTODIA",2,5,"SALAS NIÑO ALEJANDRA","asalas@difzapopan.gob.mx","38363444","1101","VISITAS","INVESTIGACIÓN","VISITA PARA SEGUIMIENTO E INVESTIGACIÓN",400,"VISITAS","ANUAL","MENSUAL","DOCUMENTOS, FOTOGRAFIAS, OTRAS PRUEBAS.","AFLUENCIA DE BENEFICIARIOS",null,"Dif municipal de zapopan","Dirección jurídica","","Lic. Alejandra Salas Niño","Consejo municipal de la familia","Consejo de familia es un órgano de participación ciudadana que sirve como enlace entre las instituciones públicas o privadas que tengan por objeto la atención de niños, niñas y adolescentes, adultos mayores y personas con discapacidad en situación de vulnerabilidad.","Menores de edad institucionalizados y en estado de vulnerabilidad resuelta su situación jurídica","","","","","",1,2]
[157,"Dirección de Juridico","Consejo Municipal de la Familia",10,"APLICACIÓN DE BATERÍAS PSICOLÓGICAS","08-Ago","TUTELAS",2,5,"SALAS NIÑO ALEJANDRA","asalas@difzapopan.gob.mx","38363444","1101","APLICACIÓN DE BATERÍAS PSICOLÓGICAS","SESION","CAPACITACIÓN COMUNITARIA",20,"SESION","ANUAL","MENSUAL","REGISTRO, EXPEDIENTE, PADRON.","AFLUENCIA DE BENEFICIARIOS",null,"Dif municipal de zapopan","Dirección jurídica","","Lic. Alejandra Salas Niño","Consejo municipal de la familia","Consejo de familia es un organo de participación ciudadana que sirve como enlace entre las instituciones públicas o privadas que tengan por objeto la atención de niños, niñas y adolescentes, adultos mayores y personas con discapacidad en situación de vulnerabilidad.","Menores de edad institucionalizados y en estado de vulnerabilidad resuelta su situación jurídica","","","","","",1,1]
[159,"Dirección de Juridico","Consejo Municipal de la Familia",10,"ASESORÍAS","01-Ene","TUTELAS",2,5,"SALAS NIÑO ALEJANDRA","asalas@difzapopan.gob.mx","38363444","1101","ASESORÍAS","SESION / ASESORÍA","INFORMACIÓN Y AYUDA AL CIUDADANO",300,"ASESORIA A CIUDADANO","ANUAL","MENSUAL","BITACORA","AFLUENCIA DE BENEFICIARIOS",null,"Dif municipal de zapopan","Dirección jurídica","","Lic. Alejandra Salas Niño","Consejo municipal de la familia","Consejo de familia es un organo de participación ciudadana que sirve como enlace entre las instituciones públicas o privadas que tengan por objeto la atención de niños, niñas y adolescentes, adultos mayores y personas con discapacidad en situación de vulnerabilidad.","Menores de edad institucionalizados y en estado de vulnerabilidad resuelta su situación jurídica","","","","","",1,88]
[159,"Dirección de Juridico","Consejo Municipal de la Familia",10,"ASESORÍAS","02-Feb","TUTELAS",2,5,"SALAS NIÑO ALEJANDRA","asalas@difzapopan.gob.mx","38363444","1101","ASESORÍAS","SESION / ASESORÍA","INFORMACIÓN Y AYUDA AL CIUDADANO",300,"ASESORIA A CIUDADANO","ANUAL","MENSUAL","BITACORA","AFLUENCIA DE BENEFICIARIOS",null,"Dif municipal de zapopan","Dirección jurídica","","Lic. Alejandra Salas Niño","Consejo municipal de la familia","Consejo de familia es un organo de participación ciudadana que sirve como enlace entre las instituciones públicas o privadas que tengan por objeto la atención de niños, niñas y adolescentes, adultos mayores y personas con discapacidad en situación de vulnerabilidad.","Menores de edad institucionalizados y en estado de vulnerabilidad resuelta su situación jurídica","","","","","",1,66]
[159,"Dirección de Juridico","Consejo Municipal de la Familia",10,"ASESORÍAS","03-Mar","TUTELAS",2,5,"SALAS NIÑO ALEJANDRA","asalas@difzapopan.gob.mx","38363444","1101","ASESORÍAS","SESION / ASESORÍA","INFORMACIÓN Y AYUDA AL CIUDADANO",300,"ASESORIA A CIUDADANO","ANUAL","MENSUAL","BITACORA","AFLUENCIA DE BENEFICIARIOS",null,"Dif municipal de zapopan","Dirección jurídica","","Lic. Alejandra Salas Niño","Consejo municipal de la familia","Consejo de familia es un organo de participación ciudadana que sirve como enlace entre las instituciones públicas o privadas que tengan por objeto la atención de niños, niñas y adolescentes, adultos mayores y personas con discapacidad en situación de vulnerabilidad.","Menores de edad institucionalizados y en estado de vulnerabilidad resuelta su situación jurídica","","","","","",1,105]
[159,"Dirección de Juridico","Consejo Municipal de la Familia",10,"ASESORÍAS","05-May","TUTELAS",2,5,"SALAS NIÑO ALEJANDRA","asalas@difzapopan.gob.mx","38363444","1101","ASESORÍAS","SESION / ASESORÍA","INFORMACIÓN Y AYUDA AL CIUDADANO",300,"ASESORIA A CIUDADANO","ANUAL","MENSUAL","BITACORA","AFLUENCIA DE BENEFICIARIOS",null,"Dif municipal de zapopan","Dirección jurídica","","Lic. Alejandra Salas Niño","Consejo municipal de la familia","Consejo de familia es un organo de participación ciudadana que sirve como enlace entre las instituciones públicas o privadas que tengan por objeto la atención de niños, niñas y adolescentes, adultos mayores y personas con discapacidad en situación de vulnerabilidad.","Menores de edad institucionalizados y en estado de vulnerabilidad resuelta su situación jurídica","","","","","",1,58]
[159,"Dirección de Juridico","Consejo Municipal de la Familia",10,"ASESORÍAS","06-Jun","TUTELAS",2,5,"SALAS NIÑO ALEJANDRA","asalas@difzapopan.gob.mx","38363444","1101","ASESORÍAS","SESION / ASESORÍA","INFORMACIÓN Y AYUDA AL CIUDADANO",300,"ASESORIA A CIUDADANO","ANUAL","MENSUAL","BITACORA","AFLUENCIA DE BENEFICIARIOS",null,"Dif municipal de zapopan","Dirección jurídica","","Lic. Alejandra Salas Niño","Consejo municipal de la familia","Consejo de familia es un organo de participación ciudadana que sirve como enlace entre las instituciones públicas o privadas que tengan por objeto la atención de niños, niñas y adolescentes, adultos mayores y personas con discapacidad en situación de vulnerabilidad.","Menores de edad institucionalizados y en estado de vulnerabilidad resuelta su situación jurídica","","","","","",1,71]
[159,"Dirección de Juridico","Consejo Municipal de la Familia",10,"ASESORÍAS","07-Jul","TUTELAS",2,5,"SALAS NIÑO ALEJANDRA","asalas@difzapopan.gob.mx","38363444","1101","ASESORÍAS","SESION / ASESORÍA","INFORMACIÓN Y AYUDA AL CIUDADANO",300,"ASESORIA A CIUDADANO","ANUAL","MENSUAL","BITACORA","AFLUENCIA DE BENEFICIARIOS",null,"Dif municipal de zapopan","Dirección jurídica","","Lic. Alejandra Salas Niño","Consejo municipal de la familia","Consejo de familia es un organo de participación ciudadana que sirve como enlace entre las instituciones públicas o privadas que tengan por objeto la atención de niños, niñas y adolescentes, adultos mayores y personas con discapacidad en situación de vulnerabilidad.","Menores de edad institucionalizados y en estado de vulnerabilidad resuelta su situación jurídica","","","","","",1,44]
[159,"Dirección de Juridico","Consejo Municipal de la Familia",10,"ASESORÍAS","08-Ago","TUTELAS",2,5,"SALAS NIÑO ALEJANDRA","asalas@difzapopan.gob.mx","38363444","1101","ASESORÍAS","SESION / ASESORÍA","INFORMACIÓN Y AYUDA AL CIUDADANO",300,"ASESORIA A CIUDADANO","ANUAL","MENSUAL","BITACORA","AFLUENCIA DE BENEFICIARIOS",null,"Dif municipal de zapopan","Dirección jurídica","","Lic. Alejandra Salas Niño","Consejo municipal de la familia","Consejo de familia es un organo de participación ciudadana que sirve como enlace entre las instituciones públicas o privadas que tengan por objeto la atención de niños, niñas y adolescentes, adultos mayores y personas con discapacidad en situación de vulnerabilidad.","Menores de edad institucionalizados y en estado de vulnerabilidad resuelta su situación jurídica","","","","","",1,107]
[159,"Dirección de Juridico","Consejo Municipal de la Familia",10,"ASESORÍAS","09-Sep","TUTELAS",2,5,"SALAS NIÑO ALEJANDRA","asalas@difzapopan.gob.mx","38363444","1101","ASESORÍAS","SESION / ASESORÍA","INFORMACIÓN Y AYUDA AL CIUDADANO",300,"ASESORIA A CIUDADANO","ANUAL","MENSUAL","BITACORA","AFLUENCIA DE BENEFICIARIOS",null,"Dif municipal de zapopan","Dirección jurídica","","Lic. Alejandra Salas Niño","Consejo municipal de la familia","Consejo de familia es un organo de participación ciudadana que sirve como enlace entre las instituciones públicas o privadas que tengan por objeto la atención de niños, niñas y adolescentes, adultos mayores y personas con discapacidad en situación de vulnerabilidad.","Menores de edad institucionalizados y en estado de vulnerabilidad resuelta su situación jurídica","","","","","",1,56]
[159,"Dirección de Juridico","Consejo Municipal de la Familia",10,"ASESORÍAS","10-Oct","TUTELAS",2,5,"SALAS NIÑO ALEJANDRA","asalas@difzapopan.gob.mx","38363444","1101","ASESORÍAS","SESION / ASESORÍA","INFORMACIÓN Y AYUDA AL CIUDADANO",300,"ASESORIA A CIUDADANO","ANUAL","MENSUAL","BITACORA","AFLUENCIA DE BENEFICIARIOS",null,"Dif municipal de zapopan","Dirección jurídica","","Lic. Alejandra Salas Niño","Consejo municipal de la familia","Consejo de familia es un organo de participación ciudadana que sirve como enlace entre las instituciones públicas o privadas que tengan por objeto la atención de niños, niñas y adolescentes, adultos mayores y personas con discapacidad en situación de vulnerabilidad.","Menores de edad institucionalizados y en estado de vulnerabilidad resuelta su situación jurídica","","","","","",1,62]
[159,"Dirección de Juridico","Consejo Municipal de la Familia",10,"ASESORÍAS","11-Nov","TUTELAS",2,5,"SALAS NIÑO ALEJANDRA","asalas@difzapopan.gob.mx","38363444","1101","ASESORÍAS","SESION / ASESORÍA","INFORMACIÓN Y AYUDA AL CIUDADANO",300,"ASESORIA A CIUDADANO","ANUAL","MENSUAL","BITACORA","AFLUENCIA DE BENEFICIARIOS",null,"Dif municipal de zapopan","Dirección jurídica","","Lic. Alejandra Salas Niño","Consejo municipal de la familia","Consejo de familia es un organo de participación ciudadana que sirve como enlace entre las instituciones públicas o privadas que tengan por objeto la atención de niños, niñas y adolescentes, adultos mayores y personas con discapacidad en situación de vulnerabilidad.","Menores de edad institucionalizados y en estado de vulnerabilidad resuelta su situación jurídica","","","","","",1,112]
[159,"Dirección de Juridico","Consejo Municipal de la Familia",10,"ASESORÍAS","12-Dic","TUTELAS",2,5,"SALAS NIÑO ALEJANDRA","asalas@difzapopan.gob.mx","38363444","1101","ASESORÍAS","SESION / ASESORÍA","INFORMACIÓN Y AYUDA AL CIUDADANO",300,"ASESORIA A CIUDADANO","ANUAL","MENSUAL","BITACORA","AFLUENCIA DE BENEFICIARIOS",null,"Dif municipal de zapopan","Dirección jurídica","","Lic. Alejandra Salas Niño","Consejo municipal de la familia","Consejo de familia es un organo de participación ciudadana que sirve como enlace entre las instituciones públicas o privadas que tengan por objeto la atención de niños, niñas y adolescentes, adultos mayores y personas con discapacidad en situación de vulnerabilidad.","Menores de edad institucionalizados y en estado de vulnerabilidad resuelta su situación jurídica","","","","","",1,8]
[160,"Dirección de Juridico","Consejo Municipal de la Familia",10,"ENTREVISTA ORIENTACIÓN","01-Ene","TUTELAS",2,5,"SALAS NIÑO ALEJANDRA","asalas@difzapopan.gob.mx","38363444","1101","ENTREVISTA ORIENTACIÓN","SESION","CAPACITACIÓN COMUNITARIA",390,"SESION","ANUAL","MENSUAL","REGISTRO","AFLUENCIA DE BENEFICIARIOS",null,"Dif municipal de zapopan","Dirección jurídica","","Lic. Alejandra Salas Niño","Consejo municipal de la familia","Consejo de familia es un organo de participación ciudadana que sirve como enlace entre las instituciones públicas o privadas que tengan por objeto la atención de niños, niñas y adolescentes, adultos mayores y personas con discapacidad en situación de vulnerabilidad.","Menores de edad institucionalizados y en estado de vulnerabilidad resuelta su situación jurídica","","","","","",1,55]
[160,"Dirección de Juridico","Consejo Municipal de la Familia",10,"ENTREVISTA ORIENTACIÓN","02-Feb","TUTELAS",2,5,"SALAS NIÑO ALEJANDRA","asalas@difzapopan.gob.mx","38363444","1101","ENTREVISTA ORIENTACIÓN","SESION","CAPACITACIÓN COMUNITARIA",390,"SESION","ANUAL","MENSUAL","REGISTRO","AFLUENCIA DE BENEFICIARIOS",null,"Dif municipal de zapopan","Dirección jurídica","","Lic. Alejandra Salas Niño","Consejo municipal de la familia","Consejo de familia es un organo de participación ciudadana que sirve como enlace entre las instituciones públicas o privadas que tengan por objeto la atención de niños, niñas y adolescentes, adultos mayores y personas con discapacidad en situación de vulnerabilidad.","Menores de edad institucionalizados y en estado de vulnerabilidad resuelta su situación jurídica","","","","","",1,63]
[160,"Dirección de Juridico","Consejo Municipal de la Familia",10,"ENTREVISTA ORIENTACIÓN","03-Mar","TUTELAS",2,5,"SALAS NIÑO ALEJANDRA","asalas@difzapopan.gob.mx","38363444","1101","ENTREVISTA ORIENTACIÓN","SESION","CAPACITACIÓN COMUNITARIA",390,"SESION","ANUAL","MENSUAL","REGISTRO","AFLUENCIA DE BENEFICIARIOS",null,"Dif municipal de zapopan","Dirección jurídica","","Lic. Alejandra Salas Niño","Consejo municipal de la familia","Consejo de familia es un organo de participación ciudadana que sirve como enlace entre las instituciones públicas o privadas que tengan por objeto la atención de niños, niñas y adolescentes, adultos mayores y personas con discapacidad en situación de vulnerabilidad.","Menores de edad institucionalizados y en estado de vulnerabilidad resuelta su situación jurídica","","","","","",1,31]
[160,"Dirección de Juridico","Consejo Municipal de la Familia",10,"ENTREVISTA ORIENTACIÓN","04-Abr","TUTELAS",2,5,"SALAS NIÑO ALEJANDRA","asalas@difzapopan.gob.mx","38363444","1101","ENTREVISTA ORIENTACIÓN","SESION","CAPACITACIÓN COMUNITARIA",390,"SESION","ANUAL","MENSUAL","REGISTRO","AFLUENCIA DE BENEFICIARIOS",null,"Dif municipal de zapopan","Dirección jurídica","","Lic. Alejandra Salas Niño","Consejo municipal de la familia","Consejo de familia es un organo de participación ciudadana que sirve como enlace entre las instituciones públicas o privadas que tengan por objeto la atención de niños, niñas y adolescentes, adultos mayores y personas con discapacidad en situación de vulnerabilidad.","Menores de edad institucionalizados y en estado de vulnerabilidad resuelta su situación jurídica","","","","","",1,22]
[160,"Dirección de Juridico","Consejo Municipal de la Familia",10,"ENTREVISTA ORIENTACIÓN","05-May","TUTELAS",2,5,"SALAS NIÑO ALEJANDRA","asalas@difzapopan.gob.mx","38363444","1101","ENTREVISTA ORIENTACIÓN","SESION","CAPACITACIÓN COMUNITARIA",390,"SESION","ANUAL","MENSUAL","REGISTRO","AFLUENCIA DE BENEFICIARIOS",null,"Dif municipal de zapopan","Dirección jurídica","","Lic. Alejandra Salas Niño","Consejo municipal de la familia","Consejo de familia es un organo de participación ciudadana que sirve como enlace entre las instituciones públicas o privadas que tengan por objeto la atención de niños, niñas y adolescentes, adultos mayores y personas con discapacidad en situación de vulnerabilidad.","Menores de edad institucionalizados y en estado de vulnerabilidad resuelta su situación jurídica","","","","","",1,23]
[160,"Dirección de Juridico","Consejo Municipal de la Familia",10,"ENTREVISTA ORIENTACIÓN","06-Jun","TUTELAS",2,5,"SALAS NIÑO ALEJANDRA","asalas@difzapopan.gob.mx","38363444","1101","ENTREVISTA ORIENTACIÓN","SESION","CAPACITACIÓN COMUNITARIA",390,"SESION","ANUAL","MENSUAL","REGISTRO","AFLUENCIA DE BENEFICIARIOS",null,"Dif municipal de zapopan","Dirección jurídica","","Lic. Alejandra Salas Niño","Consejo municipal de la familia","Consejo de familia es un organo de participación ciudadana que sirve como enlace entre las instituciones públicas o privadas que tengan por objeto la atención de niños, niñas y adolescentes, adultos mayores y personas con discapacidad en situación de vulnerabilidad.","Menores de edad institucionalizados y en estado de vulnerabilidad resuelta su situación jurídica","","","","","",1,15]
[160,"Dirección de Juridico","Consejo Municipal de la Familia",10,"ENTREVISTA ORIENTACIÓN","07-Jul","TUTELAS",2,5,"SALAS NIÑO ALEJANDRA","asalas@difzapopan.gob.mx","38363444","1101","ENTREVISTA ORIENTACIÓN","SESION","CAPACITACIÓN COMUNITARIA",390,"SESION","ANUAL","MENSUAL","REGISTRO","AFLUENCIA DE BENEFICIARIOS",null,"Dif municipal de zapopan","Dirección jurídica","","Lic. Alejandra Salas Niño","Consejo municipal de la familia","Consejo de familia es un organo de participación ciudadana que sirve como enlace entre las instituciones públicas o privadas que tengan por objeto la atención de niños, niñas y adolescentes, adultos mayores y personas con discapacidad en situación de vulnerabilidad.","Menores de edad institucionalizados y en estado de vulnerabilidad resuelta su situación jurídica","","","","","",1,16]
[160,"Dirección de Juridico","Consejo Municipal de la Familia",10,"ENTREVISTA ORIENTACIÓN","08-Ago","TUTELAS",2,5,"SALAS NIÑO ALEJANDRA","asalas@difzapopan.gob.mx","38363444","1101","ENTREVISTA ORIENTACIÓN","SESION","CAPACITACIÓN COMUNITARIA",390,"SESION","ANUAL","MENSUAL","REGISTRO","AFLUENCIA DE BENEFICIARIOS",null,"Dif municipal de zapopan","Dirección jurídica","","Lic. Alejandra Salas Niño","Consejo municipal de la familia","Consejo de familia es un organo de participación ciudadana que sirve como enlace entre las instituciones públicas o privadas que tengan por objeto la atención de niños, niñas y adolescentes, adultos mayores y personas con discapacidad en situación de vulnerabilidad.","Menores de edad institucionalizados y en estado de vulnerabilidad resuelta su situación jurídica","","","","","",1,5]
[160,"Dirección de Juridico","Consejo Municipal de la Familia",10,"ENTREVISTA ORIENTACIÓN","09-Sep","TUTELAS",2,5,"SALAS NIÑO ALEJANDRA","asalas@difzapopan.gob.mx","38363444","1101","ENTREVISTA ORIENTACIÓN","SESION","CAPACITACIÓN COMUNITARIA",390,"SESION","ANUAL","MENSUAL","REGISTRO","AFLUENCIA DE BENEFICIARIOS",null,"Dif municipal de zapopan","Dirección jurídica","","Lic. Alejandra Salas Niño","Consejo municipal de la familia","Consejo de familia es un organo de participación ciudadana que sirve como enlace entre las instituciones públicas o privadas que tengan por objeto la atención de niños, niñas y adolescentes, adultos mayores y personas con discapacidad en situación de vulnerabilidad.","Menores de edad institucionalizados y en estado de vulnerabilidad resuelta su situación jurídica","","","","","",1,1]
[160,"Dirección de Juridico","Consejo Municipal de la Familia",10,"ENTREVISTA ORIENTACIÓN","10-Oct","TUTELAS",2,5,"SALAS NIÑO ALEJANDRA","asalas@difzapopan.gob.mx","38363444","1101","ENTREVISTA ORIENTACIÓN","SESION","CAPACITACIÓN COMUNITARIA",390,"SESION","ANUAL","MENSUAL","REGISTRO","AFLUENCIA DE BENEFICIARIOS",null,"Dif municipal de zapopan","Dirección jurídica","","Lic. Alejandra Salas Niño","Consejo municipal de la familia","Consejo de familia es un organo de participación ciudadana que sirve como enlace entre las instituciones públicas o privadas que tengan por objeto la atención de niños, niñas y adolescentes, adultos mayores y personas con discapacidad en situación de vulnerabilidad.","Menores de edad institucionalizados y en estado de vulnerabilidad resuelta su situación jurídica","","","","","",1,117]
[160,"Dirección de Juridico","Consejo Municipal de la Familia",10,"ENTREVISTA ORIENTACIÓN","11-Nov","TUTELAS",2,5,"SALAS NIÑO ALEJANDRA","asalas@difzapopan.gob.mx","38363444","1101","ENTREVISTA ORIENTACIÓN","SESION","CAPACITACIÓN COMUNITARIA",390,"SESION","ANUAL","MENSUAL","REGISTRO","AFLUENCIA DE BENEFICIARIOS",null,"Dif municipal de zapopan","Dirección jurídica","","Lic. Alejandra Salas Niño","Consejo municipal de la familia","Consejo de familia es un organo de participación ciudadana que sirve como enlace entre las instituciones públicas o privadas que tengan por objeto la atención de niños, niñas y adolescentes, adultos mayores y personas con discapacidad en situación de vulnerabilidad.","Menores de edad institucionalizados y en estado de vulnerabilidad resuelta su situación jurídica","","","","","",1,16]
[161,"Dirección de Juridico","Consejo Municipal de la Familia",10,"ESTUDIOS SOCIOFAMILIAR","01-Ene","TUTELAS",2,5,"SALAS NIÑO ALEJANDRA","asalas@difzapopan.gob.mx","38363444","1101","ESTUDIOS SOCIOFAMILIAR","SESION","CAPACITACIÓN COMUNITARIA",10,"SESION","ANUAL","MENSUAL","REGISTRO","AFLUENCIA DE BENEFICIARIOS",null,"Dif municipal de zapopan","Dirección jurídica","","Lic. Alejandra Salas Niño","Consejo municipal de la familia","Consejo de familia es un organo de participación ciudadana que sirve como enlace entre las instituciones públicas o privadas que tengan por objeto la atención de niños, niñas y adolescentes, adultos mayores y personas con discapacidad en situación de vulnerabilidad.","Menores de edad institucionalizados y en estado de vulnerabilidad resuelta su situación jurídica","","","","","",1,1]
[161,"Dirección de Juridico","Consejo Municipal de la Familia",10,"ESTUDIOS SOCIOFAMILIAR","03-Mar","TUTELAS",2,5,"SALAS NIÑO ALEJANDRA","asalas@difzapopan.gob.mx","38363444","1101","ESTUDIOS SOCIOFAMILIAR","SESION","CAPACITACIÓN COMUNITARIA",10,"SESION","ANUAL","MENSUAL","REGISTRO","AFLUENCIA DE BENEFICIARIOS",null,"Dif municipal de zapopan","Dirección jurídica","","Lic. Alejandra Salas Niño","Consejo municipal de la familia","Consejo de familia es un organo de participación ciudadana que sirve como enlace entre las instituciones públicas o privadas que tengan por objeto la atención de niños, niñas y adolescentes, adultos mayores y personas con discapacidad en situación de vulnerabilidad.","Menores de edad institucionalizados y en estado de vulnerabilidad resuelta su situación jurídica","","","","","",1,1]
[161,"Dirección de Juridico","Consejo Municipal de la Familia",10,"ESTUDIOS SOCIOFAMILIAR","05-May","TUTELAS",2,5,"SALAS NIÑO ALEJANDRA","asalas@difzapopan.gob.mx","38363444","1101","ESTUDIOS SOCIOFAMILIAR","SESION","CAPACITACIÓN COMUNITARIA",10,"SESION","ANUAL","MENSUAL","REGISTRO","AFLUENCIA DE BENEFICIARIOS",null,"Dif municipal de zapopan","Dirección jurídica","","Lic. Alejandra Salas Niño","Consejo municipal de la familia","Consejo de familia es un organo de participación ciudadana que sirve como enlace entre las instituciones públicas o privadas que tengan por objeto la atención de niños, niñas y adolescentes, adultos mayores y personas con discapacidad en situación de vulnerabilidad.","Menores de edad institucionalizados y en estado de vulnerabilidad resuelta su situación jurídica","","","","","",1,3]
[161,"Dirección de Juridico","Consejo Municipal de la Familia",10,"ESTUDIOS SOCIOFAMILIAR","06-Jun","TUTELAS",2,5,"SALAS NIÑO ALEJANDRA","asalas@difzapopan.gob.mx","38363444","1101","ESTUDIOS SOCIOFAMILIAR","SESION","CAPACITACIÓN COMUNITARIA",10,"SESION","ANUAL","MENSUAL","REGISTRO","AFLUENCIA DE BENEFICIARIOS",null,"Dif municipal de zapopan","Dirección jurídica","","Lic. Alejandra Salas Niño","Consejo municipal de la familia","Consejo de familia es un organo de participación ciudadana que sirve como enlace entre las instituciones públicas o privadas que tengan por objeto la atención de niños, niñas y adolescentes, adultos mayores y personas con discapacidad en situación de vulnerabilidad.","Menores de edad institucionalizados y en estado de vulnerabilidad resuelta su situación jurídica","","","","","",1,4]
[161,"Dirección de Juridico","Consejo Municipal de la Familia",10,"ESTUDIOS SOCIOFAMILIAR","11-Nov","TUTELAS",2,5,"SALAS NIÑO ALEJANDRA","asalas@difzapopan.gob.mx","38363444","1101","ESTUDIOS SOCIOFAMILIAR","SESION","CAPACITACIÓN COMUNITARIA",10,"SESION","ANUAL","MENSUAL","REGISTRO","AFLUENCIA DE BENEFICIARIOS",null,"Dif municipal de zapopan","Dirección jurídica","","Lic. Alejandra Salas Niño","Consejo municipal de la familia","Consejo de familia es un organo de participación ciudadana que sirve como enlace entre las instituciones públicas o privadas que tengan por objeto la atención de niños, niñas y adolescentes, adultos mayores y personas con discapacidad en situación de vulnerabilidad.","Menores de edad institucionalizados y en estado de vulnerabilidad resuelta su situación jurídica","","","","","",1,4]
[163,"Dirección de Juridico","Consejo Municipal de la Familia",10,"REPRESENTACIONES JUDICIALES, MINISTERIALES Y ADMINISTRATIVAS","01-Ene","TUTELAS",2,5,"SALAS NIÑO ALEJANDRA","asalas@difzapopan.gob.mx","38363444","1101","REPRESENTACIONES JUDICIALES, MINISTERIALES Y ADMINISTRATIVAS","SESION","CAPACITACIÓN COMUNITARIA",1920,"SESION","ANUAL","MENSUAL","REGISTRO, EXPEDIENTE, PADRON, INVESTIGACION","AFLUENCIA DE BENEFICIARIOS",null,"Dif municipal de zapopan","Dirección jurídica","","Lic. Alejandra Salas Niño","Consejo municipal de la familia","Consejo de familia es un organo de participación ciudadana que sirve como enlace entre las instituciones públicas o privadas que tengan por objeto la atención de niños, niñas y adolescentes, adultos mayores y personas con discapacidad en situación de vulnerabilidad.","Menores de edad institucionalizados y en estado de vulnerabilidad resuelta su situación jurídica","","","","","",1,133]
[163,"Dirección de Juridico","Consejo Municipal de la Familia",10,"REPRESENTACIONES JUDICIALES, MINISTERIALES Y ADMINISTRATIVAS","02-Feb","TUTELAS",2,5,"SALAS NIÑO ALEJANDRA","asalas@difzapopan.gob.mx","38363444","1101","REPRESENTACIONES JUDICIALES, MINISTERIALES Y ADMINISTRATIVAS","SESION","CAPACITACIÓN COMUNITARIA",1920,"SESION","ANUAL","MENSUAL","REGISTRO, EXPEDIENTE, PADRON, INVESTIGACION","AFLUENCIA DE BENEFICIARIOS",null,"Dif municipal de zapopan","Dirección jurídica","","Lic. Alejandra Salas Niño","Consejo municipal de la familia","Consejo de familia es un organo de participación ciudadana que sirve como enlace entre las instituciones públicas o privadas que tengan por objeto la atención de niños, niñas y adolescentes, adultos mayores y personas con discapacidad en situación de vulnerabilidad.","Menores de edad institucionalizados y en estado de vulnerabilidad resuelta su situación jurídica","","","","","",1,84]
[164,"Dirección de Juridico","Consejo Municipal de la Familia",10,"VISITAS","01-Ene","TUTELAS",2,5,"SALAS NIÑO ALEJANDRA","asalas@difzapopan.gob.mx","38363444","1101","VISITAS","INVESTIGACIÓN","VISITA PARA SEGUIMIENTO E INVESTIGACIÓN",190,"VISITAS","ANUAL","MENSUAL","DOCUMENTOS, FOTOGRAFIAS, OTRAS PRUEBAS.","RECURSOS, TRANSPORTE, TIEMPO, DATOS CORRECTOS",null,"Dif municipal de zapopan","Dirección jurídica","","Lic. Alejandra Salas Niño","Consejo municipal de la familia","Consejo de familia es un organo de participación ciudadana que sirve como enlace entre las instituciones públicas o privadas que tengan por objeto la atención de niños, niñas y adolescentes, adultos mayores y personas con discapacidad en situación de vulnerabilidad.","Menores de edad institucionalizados y en estado de vulnerabilidad resuelta su situación jurídica","","","","","",1,3]
[164,"Dirección de Juridico","Consejo Municipal de la Familia",10,"VISITAS","02-Feb","TUTELAS",2,5,"SALAS NIÑO ALEJANDRA","asalas@difzapopan.gob.mx","38363444","1101","VISITAS","INVESTIGACIÓN","VISITA PARA SEGUIMIENTO E INVESTIGACIÓN",190,"VISITAS","ANUAL","MENSUAL","DOCUMENTOS, FOTOGRAFIAS, OTRAS PRUEBAS.","RECURSOS, TRANSPORTE, TIEMPO, DATOS CORRECTOS",null,"Dif municipal de zapopan","Dirección jurídica","","Lic. Alejandra Salas Niño","Consejo municipal de la familia","Consejo de familia es un organo de participación ciudadana que sirve como enlace entre las instituciones públicas o privadas que tengan por objeto la atención de niños, niñas y adolescentes, adultos mayores y personas con discapacidad en situación de vulnerabilidad.","Menores de edad institucionalizados y en estado de vulnerabilidad resuelta su situación jurídica","","","","","",1,15]
[164,"Dirección de Juridico","Consejo Municipal de la Familia",10,"VISITAS","03-Mar","TUTELAS",2,5,"SALAS NIÑO ALEJANDRA","asalas@difzapopan.gob.mx","38363444","1101","VISITAS","INVESTIGACIÓN","VISITA PARA SEGUIMIENTO E INVESTIGACIÓN",190,"VISITAS","ANUAL","MENSUAL","DOCUMENTOS, FOTOGRAFIAS, OTRAS PRUEBAS.","RECURSOS, TRANSPORTE, TIEMPO, DATOS CORRECTOS",null,"Dif municipal de zapopan","Dirección jurídica","","Lic. Alejandra Salas Niño","Consejo municipal de la familia","Consejo de familia es un organo de participación ciudadana que sirve como enlace entre las instituciones públicas o privadas que tengan por objeto la atención de niños, niñas y adolescentes, adultos mayores y personas con discapacidad en situación de vulnerabilidad.","Menores de edad institucionalizados y en estado de vulnerabilidad resuelta su situación jurídica","","","","","",1,28]
[164,"Dirección de Juridico","Consejo Municipal de la Familia",10,"VISITAS","05-May","TUTELAS",2,5,"SALAS NIÑO ALEJANDRA","asalas@difzapopan.gob.mx","38363444","1101","VISITAS","INVESTIGACIÓN","VISITA PARA SEGUIMIENTO E INVESTIGACIÓN",190,"VISITAS","ANUAL","MENSUAL","DOCUMENTOS, FOTOGRAFIAS, OTRAS PRUEBAS.","RECURSOS, TRANSPORTE, TIEMPO, DATOS CORRECTOS",null,"Dif municipal de zapopan","Dirección jurídica","","Lic. Alejandra Salas Niño","Consejo municipal de la familia","Consejo de familia es un organo de participación ciudadana que sirve como enlace entre las instituciones públicas o privadas que tengan por objeto la atención de niños, niñas y adolescentes, adultos mayores y personas con discapacidad en situación de vulnerabilidad.","Menores de edad institucionalizados y en estado de vulnerabilidad resuelta su situación jurídica","","","","","",1,38]
[164,"Dirección de Juridico","Consejo Municipal de la Familia",10,"VISITAS","06-Jun","TUTELAS",2,5,"SALAS NIÑO ALEJANDRA","asalas@difzapopan.gob.mx","38363444","1101","VISITAS","INVESTIGACIÓN","VISITA PARA SEGUIMIENTO E INVESTIGACIÓN",190,"VISITAS","ANUAL","MENSUAL","DOCUMENTOS, FOTOGRAFIAS, OTRAS PRUEBAS.","RECURSOS, TRANSPORTE, TIEMPO, DATOS CORRECTOS",null,"Dif municipal de zapopan","Dirección jurídica","","Lic. Alejandra Salas Niño","Consejo municipal de la familia","Consejo de familia es un organo de participación ciudadana que sirve como enlace entre las instituciones públicas o privadas que tengan por objeto la atención de niños, niñas y adolescentes, adultos mayores y personas con discapacidad en situación de vulnerabilidad.","Menores de edad institucionalizados y en estado de vulnerabilidad resuelta su situación jurídica","","","","","",1,21]
[164,"Dirección de Juridico","Consejo Municipal de la Familia",10,"VISITAS","07-Jul","TUTELAS",2,5,"SALAS NIÑO ALEJANDRA","asalas@difzapopan.gob.mx","38363444","1101","VISITAS","INVESTIGACIÓN","VISITA PARA SEGUIMIENTO E INVESTIGACIÓN",190,"VISITAS","ANUAL","MENSUAL","DOCUMENTOS, FOTOGRAFIAS, OTRAS PRUEBAS.","RECURSOS, TRANSPORTE, TIEMPO, DATOS CORRECTOS",null,"Dif municipal de zapopan","Dirección jurídica","","Lic. Alejandra Salas Niño","Consejo municipal de la familia","Consejo de familia es un organo de participación ciudadana que sirve como enlace entre las instituciones públicas o privadas que tengan por objeto la atención de niños, niñas y adolescentes, adultos mayores y personas con discapacidad en situación de vulnerabilidad.","Menores de edad institucionalizados y en estado de vulnerabilidad resuelta su situación jurídica","","","","","",1,13]
[164,"Dirección de Juridico","Consejo Municipal de la Familia",10,"VISITAS","08-Ago","TUTELAS",2,5,"SALAS NIÑO ALEJANDRA","asalas@difzapopan.gob.mx","38363444","1101","VISITAS","INVESTIGACIÓN","VISITA PARA SEGUIMIENTO E INVESTIGACIÓN",190,"VISITAS","ANUAL","MENSUAL","DOCUMENTOS, FOTOGRAFIAS, OTRAS PRUEBAS.","RECURSOS, TRANSPORTE, TIEMPO, DATOS CORRECTOS",null,"Dif municipal de zapopan","Dirección jurídica","","Lic. Alejandra Salas Niño","Consejo municipal de la familia","Consejo de familia es un organo de participación ciudadana que sirve como enlace entre las instituciones públicas o privadas que tengan por objeto la atención de niños, niñas y adolescentes, adultos mayores y personas con discapacidad en situación de vulnerabilidad.","Menores de edad institucionalizados y en estado de vulnerabilidad resuelta su situación jurídica","","","","","",1,22]
[164,"Dirección de Juridico","Consejo Municipal de la Familia",10,"VISITAS","09-Sep","TUTELAS",2,5,"SALAS NIÑO ALEJANDRA","asalas@difzapopan.gob.mx","38363444","1101","VISITAS","INVESTIGACIÓN","VISITA PARA SEGUIMIENTO E INVESTIGACIÓN",190,"VISITAS","ANUAL","MENSUAL","DOCUMENTOS, FOTOGRAFIAS, OTRAS PRUEBAS.","RECURSOS, TRANSPORTE, TIEMPO, DATOS CORRECTOS",null,"Dif municipal de zapopan","Dirección jurídica","","Lic. Alejandra Salas Niño","Consejo municipal de la familia","Consejo de familia es un organo de participación ciudadana que sirve como enlace entre las instituciones públicas o privadas que tengan por objeto la atención de niños, niñas y adolescentes, adultos mayores y personas con discapacidad en situación de vulnerabilidad.","Menores de edad institucionalizados y en estado de vulnerabilidad resuelta su situación jurídica","","","","","",1,21]
[164,"Dirección de Juridico","Consejo Municipal de la Familia",10,"VISITAS","10-Oct","TUTELAS",2,5,"SALAS NIÑO ALEJANDRA","asalas@difzapopan.gob.mx","38363444","1101","VISITAS","INVESTIGACIÓN","VISITA PARA SEGUIMIENTO E INVESTIGACIÓN",190,"VISITAS","ANUAL","MENSUAL","DOCUMENTOS, FOTOGRAFIAS, OTRAS PRUEBAS.","RECURSOS, TRANSPORTE, TIEMPO, DATOS CORRECTOS",null,"Dif municipal de zapopan","Dirección jurídica","","Lic. Alejandra Salas Niño","Consejo municipal de la familia","Consejo de familia es un organo de participación ciudadana que sirve como enlace entre las instituciones públicas o privadas que tengan por objeto la atención de niños, niñas y adolescentes, adultos mayores y personas con discapacidad en situación de vulnerabilidad.","Menores de edad institucionalizados y en estado de vulnerabilidad resuelta su situación jurídica","","","","","",1,15]
[164,"Dirección de Juridico","Consejo Municipal de la Familia",10,"VISITAS","11-Nov","TUTELAS",2,5,"SALAS NIÑO ALEJANDRA","asalas@difzapopan.gob.mx","38363444","1101","VISITAS","INVESTIGACIÓN","VISITA PARA SEGUIMIENTO E INVESTIGACIÓN",190,"VISITAS","ANUAL","MENSUAL","DOCUMENTOS, FOTOGRAFIAS, OTRAS PRUEBAS.","RECURSOS, TRANSPORTE, TIEMPO, DATOS CORRECTOS",null,"Dif municipal de zapopan","Dirección jurídica","","Lic. Alejandra Salas Niño","Consejo municipal de la familia","Consejo de familia es un organo de participación ciudadana que sirve como enlace entre las instituciones públicas o privadas que tengan por objeto la atención de niños, niñas y adolescentes, adultos mayores y personas con discapacidad en situación de vulnerabilidad.","Menores de edad institucionalizados y en estado de vulnerabilidad resuelta su situación jurídica","","","","","",1,20]
[165,"Dirección de Juridico","Consejo Municipal de la Familia",10,"VISITAS SEGUIMIENTO","01-Ene","TUTELAS",2,5,"SALAS NIÑO ALEJANDRA","asalas@difzapopan.gob.mx","38363444","1101","VISITAS SEGUIMIENTO","INVESTIGACIÓN","VISITA PARA SEGUIMIENTO E INVESTIGACIÓN",330,"VISITAS","ANUAL","MENSUAL","DOCUMENTOS, FOTOGRAFIAS, OTRAS PRUEBAS.","RECURSOS, TRANSPORTE, TIEMPO, DATOS CORRECTOS",null,"Dif municipal de zapopan","Dirección jurídica","","Lic. Alejandra Salas Niño","Consejo municipal de la familia","Consejo de familia es un organo de participación ciudadana que sirve como enlace entre las instituciones públicas o privadas que tengan por objeto la atención de niños, niñas y adolescentes, adultos mayores y personas con discapacidad en situación de vulnerabilidad.","Menores de edad institucionalizados y en estado de vulnerabilidad resuelta su situación jurídica","","","","","",1,26]
[165,"Dirección de Juridico","Consejo Municipal de la Familia",10,"VISITAS SEGUIMIENTO","02-Feb","TUTELAS",2,5,"SALAS NIÑO ALEJANDRA","asalas@difzapopan.gob.mx","38363444","1101","VISITAS SEGUIMIENTO","INVESTIGACIÓN","VISITA PARA SEGUIMIENTO E INVESTIGACIÓN",330,"VISITAS","ANUAL","MENSUAL","DOCUMENTOS, FOTOGRAFIAS, OTRAS PRUEBAS.","RECURSOS, TRANSPORTE, TIEMPO, DATOS CORRECTOS",null,"Dif municipal de zapopan","Dirección jurídica","","Lic. Alejandra Salas Niño","Consejo municipal de la familia","Consejo de familia es un organo de participación ciudadana que sirve como enlace entre las instituciones públicas o privadas que tengan por objeto la atención de niños, niñas y adolescentes, adultos mayores y personas con discapacidad en situación de vulnerabilidad.","Menores de edad institucionalizados y en estado de vulnerabilidad resuelta su situación jurídica","","","","","",1,18]
[165,"Dirección de Juridico","Consejo Municipal de la Familia",10,"VISITAS SEGUIMIENTO","03-Mar","TUTELAS",2,5,"SALAS NIÑO ALEJANDRA","asalas@difzapopan.gob.mx","38363444","1101","VISITAS SEGUIMIENTO","INVESTIGACIÓN","VISITA PARA SEGUIMIENTO E INVESTIGACIÓN",330,"VISITAS","ANUAL","MENSUAL","DOCUMENTOS, FOTOGRAFIAS, OTRAS PRUEBAS.","RECURSOS, TRANSPORTE, TIEMPO, DATOS CORRECTOS",null,"Dif municipal de zapopan","Dirección jurídica","","Lic. Alejandra Salas Niño","Consejo municipal de la familia","Consejo de familia es un organo de participación ciudadana que sirve como enlace entre las instituciones públicas o privadas que tengan por objeto la atención de niños, niñas y adolescentes, adultos mayores y personas con discapacidad en situación de vulnerabilidad.","Menores de edad institucionalizados y en estado de vulnerabilidad resuelta su situación jurídica","","","","","",1,28]
[165,"Dirección de Juridico","Consejo Municipal de la Familia",10,"VISITAS SEGUIMIENTO","06-Jun","TUTELAS",2,5,"SALAS NIÑO ALEJANDRA","asalas@difzapopan.gob.mx","38363444","1101","VISITAS SEGUIMIENTO","INVESTIGACIÓN","VISITA PARA SEGUIMIENTO E INVESTIGACIÓN",330,"VISITAS","ANUAL","MENSUAL","DOCUMENTOS, FOTOGRAFIAS, OTRAS PRUEBAS.","RECURSOS, TRANSPORTE, TIEMPO, DATOS CORRECTOS",null,"Dif municipal de zapopan","Dirección jurídica","","Lic. Alejandra Salas Niño","Consejo municipal de la familia","Consejo de familia es un organo de participación ciudadana que sirve como enlace entre las instituciones públicas o privadas que tengan por objeto la atención de niños, niñas y adolescentes, adultos mayores y personas con discapacidad en situación de vulnerabilidad.","Menores de edad institucionalizados y en estado de vulnerabilidad resuelta su situación jurídica","","","","","",1,1]
[165,"Dirección de Juridico","Consejo Municipal de la Familia",10,"VISITAS SEGUIMIENTO","07-Jul","TUTELAS",2,5,"SALAS NIÑO ALEJANDRA","asalas@difzapopan.gob.mx","38363444","1101","VISITAS SEGUIMIENTO","INVESTIGACIÓN","VISITA PARA SEGUIMIENTO E INVESTIGACIÓN",330,"VISITAS","ANUAL","MENSUAL","DOCUMENTOS, FOTOGRAFIAS, OTRAS PRUEBAS.","RECURSOS, TRANSPORTE, TIEMPO, DATOS CORRECTOS",null,"Dif municipal de zapopan","Dirección jurídica","","Lic. Alejandra Salas Niño","Consejo municipal de la familia","Consejo de familia es un organo de participación ciudadana que sirve como enlace entre las instituciones públicas o privadas que tengan por objeto la atención de niños, niñas y adolescentes, adultos mayores y personas con discapacidad en situación de vulnerabilidad.","Menores de edad institucionalizados y en estado de vulnerabilidad resuelta su situación jurídica","","","","","",1,1]
[165,"Dirección de Juridico","Consejo Municipal de la Familia",10,"VISITAS SEGUIMIENTO","08-Ago","TUTELAS",2,5,"SALAS NIÑO ALEJANDRA","asalas@difzapopan.gob.mx","38363444","1101","VISITAS SEGUIMIENTO","INVESTIGACIÓN","VISITA PARA SEGUIMIENTO E INVESTIGACIÓN",330,"VISITAS","ANUAL","MENSUAL","DOCUMENTOS, FOTOGRAFIAS, OTRAS PRUEBAS.","RECURSOS, TRANSPORTE, TIEMPO, DATOS CORRECTOS",null,"Dif municipal de zapopan","Dirección jurídica","","Lic. Alejandra Salas Niño","Consejo municipal de la familia","Consejo de familia es un organo de participación ciudadana que sirve como enlace entre las instituciones públicas o privadas que tengan por objeto la atención de niños, niñas y adolescentes, adultos mayores y personas con discapacidad en situación de vulnerabilidad.","Menores de edad institucionalizados y en estado de vulnerabilidad resuelta su situación jurídica","","","","","",1,21]
[165,"Dirección de Juridico","Consejo Municipal de la Familia",10,"VISITAS SEGUIMIENTO","09-Sep","TUTELAS",2,5,"SALAS NIÑO ALEJANDRA","asalas@difzapopan.gob.mx","38363444","1101","VISITAS SEGUIMIENTO","INVESTIGACIÓN","VISITA PARA SEGUIMIENTO E INVESTIGACIÓN",330,"VISITAS","ANUAL","MENSUAL","DOCUMENTOS, FOTOGRAFIAS, OTRAS PRUEBAS.","RECURSOS, TRANSPORTE, TIEMPO, DATOS CORRECTOS",null,"Dif municipal de zapopan","Dirección jurídica","","Lic. Alejandra Salas Niño","Consejo municipal de la familia","Consejo de familia es un organo de participación ciudadana que sirve como enlace entre las instituciones públicas o privadas que tengan por objeto la atención de niños, niñas y adolescentes, adultos mayores y personas con discapacidad en situación de vulnerabilidad.","Menores de edad institucionalizados y en estado de vulnerabilidad resuelta su situación jurídica","","","","","",1,2]
[165,"Dirección de Juridico","Consejo Municipal de la Familia",10,"VISITAS SEGUIMIENTO","10-Oct","TUTELAS",2,5,"SALAS NIÑO ALEJANDRA","asalas@difzapopan.gob.mx","38363444","1101","VISITAS SEGUIMIENTO","INVESTIGACIÓN","VISITA PARA SEGUIMIENTO E INVESTIGACIÓN",330,"VISITAS","ANUAL","MENSUAL","DOCUMENTOS, FOTOGRAFIAS, OTRAS PRUEBAS.","RECURSOS, TRANSPORTE, TIEMPO, DATOS CORRECTOS",null,"Dif municipal de zapopan","Dirección jurídica","","Lic. Alejandra Salas Niño","Consejo municipal de la familia","Consejo de familia es un organo de participación ciudadana que sirve como enlace entre las instituciones públicas o privadas que tengan por objeto la atención de niños, niñas y adolescentes, adultos mayores y personas con discapacidad en situación de vulnerabilidad.","Menores de edad institucionalizados y en estado de vulnerabilidad resuelta su situación jurídica","","","","","",1,19]
[165,"Dirección de Juridico","Consejo Municipal de la Familia",10,"VISITAS SEGUIMIENTO","11-Nov","TUTELAS",2,5,"SALAS NIÑO ALEJANDRA","asalas@difzapopan.gob.mx","38363444","1101","VISITAS SEGUIMIENTO","INVESTIGACIÓN","VISITA PARA SEGUIMIENTO E INVESTIGACIÓN",330,"VISITAS","ANUAL","MENSUAL","DOCUMENTOS, FOTOGRAFIAS, OTRAS PRUEBAS.","RECURSOS, TRANSPORTE, TIEMPO, DATOS CORRECTOS",null,"Dif municipal de zapopan","Dirección jurídica","","Lic. Alejandra Salas Niño","Consejo municipal de la familia","Consejo de familia es un organo de participación ciudadana que sirve como enlace entre las instituciones públicas o privadas que tengan por objeto la atención de niños, niñas y adolescentes, adultos mayores y personas con discapacidad en situación de vulnerabilidad.","Menores de edad institucionalizados y en estado de vulnerabilidad resuelta su situación jurídica","","","","","",1,32]
[165,"Dirección de Juridico","Consejo Municipal de la Familia",10,"VISITAS SEGUIMIENTO","12-Dic","TUTELAS",2,5,"SALAS NIÑO ALEJANDRA","asalas@difzapopan.gob.mx","38363444","1101","VISITAS SEGUIMIENTO","INVESTIGACIÓN","VISITA PARA SEGUIMIENTO E INVESTIGACIÓN",330,"VISITAS","ANUAL","MENSUAL","DOCUMENTOS, FOTOGRAFIAS, OTRAS PRUEBAS.","RECURSOS, TRANSPORTE, TIEMPO, DATOS CORRECTOS",null,"Dif municipal de zapopan","Dirección jurídica","","Lic. Alejandra Salas Niño","Consejo municipal de la familia","Consejo de familia es un organo de participación ciudadana que sirve como enlace entre las instituciones públicas o privadas que tengan por objeto la atención de niños, niñas y adolescentes, adultos mayores y personas con discapacidad en situación de vulnerabilidad.","Menores de edad institucionalizados y en estado de vulnerabilidad resuelta su situación jurídica","","","","","",1,5]